Workbook

Sheet INFO
A1: PROGRAMME DE GESTION CHAMPIONNAT DE FRANCE DES CLUBS ECOLE DE TIR
A2: remplir en lettres majuscules
A3: COMPETITION
A4: date : | B4: 15 ET 16 Janvier 2022
A5: lieu : | B5: PONS
A6: saison : | B6: 2021-2022
A7: Discipline : | B7: CARABINE | C7: (CARABINE ou PISTOLET)
A8: Nombre d'équipe : | B8: 2
A9: Ligue : | B9: POITOU-CHARENTES | C9: (EN MAJUSCULE)
A11: RESPONSABLE DE LA SAISIE
A12: NOM Prénom : | B12: POISSONNET Pierre
A13: téléphone : | B13: 06 85 47 62 84
A14: adresse électronique : | B14: gestcompte@cd-tir-17.org
A16: Ce programme n'est pas protégé, je vous conseille d'en créer une copie avant utilisation afin de pallier à de possibles erreurs de manipulation. Pour tout problème lié aux règlements, veuillez consulter le document : mode d'emploi cdfc 10m.pdf. Pour toute information complémentaire ou modification particulière, contacter :
A17: Monsieur Philippe QUENTEL
A18: pquentel@fftir.org
A19: 01 58 05 45 32

Sheet saisie
A1: =CONCATENATE(INFO!B7," - ",INFO!B9) -> CARABINE - POITOU-CHARENTES
A3: POSTE | B3: Classement provisoire | C3: CLUB | D3: N° club | E3: Nom | F3: Séries | H3: Total | I3: M* | J3: Nom | K3: Séries | M3: Total | N3: M* | O3: Nom | P3: Séries | R3: Total | S3: M* | T3: TOTAL | U3: Bar.
E4: BENJAMINS | F4: 1 | G4: 2 | J4: POUSSINS | K4: 1 | L4: 2 | O4: MINIMES | P4: 1 | Q4: 2
A5: 1 | B5: =RANK(W5,W$5:W$44,0) -> 2 | C5: JONZAC S.J.T | D5: 1717165 | E5: CRUCHET Luna | F5: 58.8 | G5: 58.7 | H5: =SUM(F5:G5) -> 117.5 | J5: MIGNOT Axel | K5: 94.9 | L5: 86.6 | M5: =SUM(K5:L5) -> 181.5 | O5: MILLEMONT Colline | P5: 57.4 | Q5: 67.3 | R5: =SUM(P5:Q5) -> 124.7 | T5: =SUM(H5+M5+R5) -> 423.7 | U5: =I5+N5+S5 -> 0 | W5: =H5+M5+R5+(0.000001*(I5+N5+S5))+(0.000000001*(G5+L5+Q5)) -> 423.7000002
A6: 2 | B6: =RANK(W6,W$5:W$44,0) -> 1 | C6: ROYAN Les Mouettes | D6: 1717153 | E6: CHAUVET Tiago | F6: 84.2 | G6: 82 | H6: 166.2 | J6: CHOTARD Hugo | K6: 75.5 | L6: 64.6 | M6: 140.1 | O6: LEYRAT Quentin | P6: 63.6 | Q6: 71.3 | R6: 134.9 | T6: 441.2 | U6: =I6+N6+S6 -> 0 | W6: =H6+M6+R6+(0.000001*(I6+N6+S6))+(0.000000001*(G6+L6+Q6)) -> 441.2000002
A7: 3 | B7: 3 | H7: 0 | M7: 0 | R7: 0 | T7: 0 | U7: 0 | W7: 0
A8: 4 | B8: 3 | H8: 0 | M8: 0 | R8: 0 | T8: 0 | U8: 0 | W8: 0
A9: 5 | B9: 3 | H9: 0 | M9: 0 | R9: 0 | T9: 0 | U9: 0 | W9: 0
A10: 6 | B10: 3 | H10: 0 | M10: 0 | R10: 0 | T10: 0 | U10: 0 | W10: 0
A11: 7 | B11: 3 | H11: 0 | M11: 0 | R11: 0 | T11: 0 | U11: 0 | W11: 0
A12: 8 | B12: 3 | H12: 0 | M12: 0 | R12: 0 | T12: 0 | U12: 0 | W12: 0
A13: 9 | B13: 3 | H13: 0 | M13: 0 | R13: 0 | T13: 0 | U13: 0 | W13: 0
A14: 10 | B14: 3 | H14: 0 | M14: 0 | R14: 0 | T14: 0 | U14: 0 | W14: 0
A15: 11 | B15: 3 | H15: 0 | M15: 0 | R15: 0 | T15: 0 | U15: 0 | W15: 0
A16: 12 | B16: 3 | H16: 0 | M16: 0 | R16: 0 | T16: 0 | U16: 0 | W16: 0
A17: 13 | B17: 3 | H17: 0 | M17: 0 | R17: 0 | T17: 0 | U17: 0 | W17: 0
A18: 14 | B18: 3 | H18: 0 | M18: 0 | R18: 0 | T18: 0 | U18: 0 | W18: 0
A19: 15 | B19: 3 | H19: 0 | M19: 0 | R19: 0 | T19: 0 | U19: 0 | W19: 0
A20: 16 | B20: 3 | H20: 0 | M20: 0 | R20: 0 | T20: 0 | U20: 0 | W20: 0
A21: 17 | B21: 3 | H21: 0 | M21: 0 | R21: 0 | T21: 0 | U21: 0 | W21: 0
A22: 18 | B22: 3 | H22: 0 | M22: 0 | R22: 0 | T22: 0 | U22: 0 | W22: 0
A23: 19 | B23: 3 | H23: 0 | M23: 0 | R23: 0 | T23: 0 | U23: 0 | W23: 0
A24: 20 | B24: 3 | H24: 0 | M24: 0 | R24: 0 | T24: 0 | U24: 0 | W24: 0
A25: 21 | B25: 3 | H25: 0 | M25: 0 | R25: 0 | T25: 0 | U25: 0 | W25: 0
A26: 22 | B26: 3 | H26: 0 | M26: 0 | R26: 0 | T26: 0 | U26: 0 | W26: 0
A27: 23 | B27: 3 | H27: 0 | M27: 0 | R27: 0 | T27: 0 | U27: 0 | W27: 0
A28: 24 | B28: 3 | H28: 0 | M28: 0 | R28: 0 | T28: 0 | U28: 0 | W28: 0
A29: 25 | B29: 3 | H29: 0 | M29: 0 | R29: 0 | T29: 0 | U29: 0 | W29: 0
A30: 26 | B30: 3 | H30: 0 | M30: 0 | R30: 0 | T30: 0 | U30: 0 | W30: 0
A31: 27 | B31: 3 | H31: 0 | M31: 0 | R31: 0 | T31: 0 | U31: 0 | W31: 0
A32: 28 | B32: 3 | H32: 0 | M32: 0 | R32: 0 | T32: 0 | U32: 0 | W32: 0
A33: 29 | B33: 3 | H33: 0 | M33: 0 | R33: 0 | T33: 0 | U33: 0 | W33: 0
A34: 30 | B34: 3 | H34: 0 | M34: 0 | R34: 0 | T34: 0 | U34: 0 | W34: 0
A35: 31 | B35: 3 | H35: 0 | M35: 0 | R35: 0 | T35: 0 | U35: 0 | W35: 0
A36: 32 | B36: 3 | H36: 0 | M36: 0 | R36: 0 | T36: 0 | U36: 0 | W36: 0
A37: 33 | B37: 3 | H37: 0 | M37: 0 | R37: 0 | T37: 0 | U37: 0 | W37: 0
A38: 34 | B38: 3 | H38: 0 | M38: 0 | R38: 0 | T38: 0 | U38: 0 | W38: 0
A39: 35 | B39: 3 | H39: 0 | M39: 0 | R39: 0 | T39: 0 | U39: 0 | W39: 0
A40: 36 | B40: 3 | H40: 0 | M40: 0 | R40: 0 | T40: 0 | U40: 0 | W40: 0
A41: 37 | B41: 3 | H41: 0 | M41: 0 | R41: 0 | T41: 0 | U41: 0 | W41: 0
A42: 38 | B42: 3 | H42: 0 | M42: 0 | R42: 0 | T42: 0 | U42: 0 | W42: 0
A43: 39 | B43: 3 | H43: 0 | M43: 0 | R43: 0 | T43: 0 | U43: 0 | W43: 0
A44: 40 | B44: 3 | H44: 0 | M44: 0 | R44: 0 | T44: 0 | U44: 0 | W44: 0

Sheet M Q
A2: =CONCATENATE("MATCH DE QUALIFICATION"," - ",INFO!B7," - ",INFO!B9) -> MATCH DE QUALIFICATION - CARABINE - POITOU-CHARENTES
A3: Cl. | B3: CLUB | C3: N° club | D3: Nom | E3: Séries | G3: Total | H3: M* | I3: Nom | J3: Séries | L3: Total | M3: M* | N3: Nom | O3: Séries | Q3: Total | R3: M* | S3: TOTAL | T3: Bar.
D4: BENJAMINS | E4: 1 | F4: 2 | I4: POUSSINS | J4: 1 | K4: 2 | N4: MINIMES | O4: 1 | P4: 2
A5: 1 | B5: =VLOOKUP(A5,saisie!B$5:W$44,2,0) -> ROYAN Les Mouettes | C5: =VLOOKUP(A5,saisie!B$5:W$44,3,0) -> 1717153 | D5: =VLOOKUP(A5,saisie!B$5:W$44,4,0) -> CHAUVET Tiago | E5: =VLOOKUP(A5,saisie!B$5:W$44,5,0) -> 84.2 | F5: =VLOOKUP(A5,saisie!B$5:W$44,6,0) -> 82 | G5: =SUM(E5:F5) -> 166.2 | H5: =VLOOKUP(A5,saisie!B$5:W$44,8,0) -> 0 | I5: =VLOOKUP(A5,saisie!B$5:W$44,9,0) -> CHOTARD Hugo | J5: =VLOOKUP(A5,saisie!B$5:W$44,10,0) -> 75.5 | K5: =VLOOKUP(A5,saisie!B$5:W$44,11,0) -> 64.6 | L5: =SUM(J5:K5) -> 140.1 | M5: =VLOOKUP(A5,saisie!B$5:W$44,13,0) -> 0 | N5: =VLOOKUP(A5,saisie!B$5:W$44,14,0) -> LEYRAT Quentin | O5: =VLOOKUP(A5,saisie!B$5:W$44,15,0) -> 63.6 | P5: =VLOOKUP(A5,saisie!B$5:W$44,16,0) -> 71.3 | Q5: =SUM(O5:P5) -> 134.9 | R5: =VLOOKUP(A5,saisie!B$5:W$44,18,0) -> 0 | S5: =SUM(G5+L5+Q5) -> 441.2 | T5: =VLOOKUP(A5,saisie!B$5:W$44,20,0) -> 0
A6: =IF(INFO!B8>1,2,"") -> 2 | B6: =VLOOKUP(A6,saisie!B$5:W$44,2,0) -> JONZAC S.J.T | C6: =VLOOKUP(A6,saisie!B$5:W$44,3,0) -> 1717165 | D6: =VLOOKUP(A6,saisie!B$5:W$44,4,0) -> CRUCHET Luna | E6: =VLOOKUP(A6,saisie!B$5:W$44,5,0) -> 58.8 | F6: =VLOOKUP(A6,saisie!B$5:W$44,6,0) -> 58.7 | G6: 117.5 | H6: =VLOOKUP(A6,saisie!B$5:W$44,8,0) -> 0 | I6: =VLOOKUP(A6,saisie!B$5:W$44,9,0) -> MIGNOT Axel | J6: =VLOOKUP(A6,saisie!B$5:W$44,10,0) -> 94.9 | K6: =VLOOKUP(A6,saisie!B$5:W$44,11,0) -> 86.6 | L6: 181.5 | M6: =VLOOKUP(A6,saisie!B$5:W$44,13,0) -> 0 | N6: =VLOOKUP(A6,saisie!B$5:W$44,14,0) -> MILLEMONT Colline | O6: =VLOOKUP(A6,saisie!B$5:W$44,15,0) -> 57.4 | P6: =VLOOKUP(A6,saisie!B$5:W$44,16,0) -> 67.3 | Q6: 124.7 | R6: =VLOOKUP(A6,saisie!B$5:W$44,18,0) -> 0 | S6: 423.7 | T6: =VLOOKUP(A6,saisie!B$5:W$44,20,0) -> 0
A7: =IF(INFO!B8>2,3,"") ->  | B7: =VLOOKUP(A7,saisie!B$5:W$44,2,0) ->  | C7: =VLOOKUP(A7,saisie!B$5:W$44,3,0) ->  | D7: =VLOOKUP(A7,saisie!B$5:W$44,4,0) ->  | E7: =VLOOKUP(A7,saisie!B$5:W$44,5,0) ->  | F7: =VLOOKUP(A7,saisie!B$5:W$44,6,0) ->  | H7: =VLOOKUP(A7,saisie!B$5:W$44,8,0) ->  | I7: =VLOOKUP(A7,saisie!B$5:W$44,9,0) ->  | J7: =VLOOKUP(A7,saisie!B$5:W$44,10,0) ->  | K7: =VLOOKUP(A7,saisie!B$5:W$44,11,0) ->  | M7: =VLOOKUP(A7,saisie!B$5:W$44,13,0) ->  | N7: =VLOOKUP(A7,saisie!B$5:W$44,14,0) ->  | O7: =VLOOKUP(A7,saisie!B$5:W$44,15,0) ->  | P7: =VLOOKUP(A7,saisie!B$5:W$44,16,0) ->  | R7: =VLOOKUP(A7,saisie!B$5:W$44,18,0) ->  | T7: =VLOOKUP(A7,saisie!B$5:W$44,20,0) -> 
A8: =IF(INFO!B8>3,4,"") ->  | B8: =VLOOKUP(A8,saisie!B$5:W$44,2,0) ->  | C8: =VLOOKUP(A8,saisie!B$5:W$44,3,0) ->  | D8: =VLOOKUP(A8,saisie!B$5:W$44,4,0) ->  | E8: =VLOOKUP(A8,saisie!B$5:W$44,5,0) ->  | F8: =VLOOKUP(A8,saisie!B$5:W$44,6,0) ->  | H8: =VLOOKUP(A8,saisie!B$5:W$44,8,0) ->  | I8: =VLOOKUP(A8,saisie!B$5:W$44,9,0) ->  | J8: =VLOOKUP(A8,saisie!B$5:W$44,10,0) ->  | K8: =VLOOKUP(A8,saisie!B$5:W$44,11,0) ->  | M8: =VLOOKUP(A8,saisie!B$5:W$44,13,0) ->  | N8: =VLOOKUP(A8,saisie!B$5:W$44,14,0) ->  | O8: =VLOOKUP(A8,saisie!B$5:W$44,15,0) ->  | P8: =VLOOKUP(A8,saisie!B$5:W$44,16,0) ->  | R8: =VLOOKUP(A8,saisie!B$5:W$44,18,0) ->  | T8: =VLOOKUP(A8,saisie!B$5:W$44,20,0) -> 
A9: =IF(INFO!B8>4,5,"") ->  | B9: =VLOOKUP(A9,saisie!B$5:W$44,2,0) ->  | C9: =VLOOKUP(A9,saisie!B$5:W$44,3,0) ->  | D9: =VLOOKUP(A9,saisie!B$5:W$44,4,0) ->  | E9: =VLOOKUP(A9,saisie!B$5:W$44,5,0) ->  | F9: =VLOOKUP(A9,saisie!B$5:W$44,6,0) ->  | H9: =VLOOKUP(A9,saisie!B$5:W$44,8,0) ->  | I9: =VLOOKUP(A9,saisie!B$5:W$44,9,0) ->  | J9: =VLOOKUP(A9,saisie!B$5:W$44,10,0) ->  | K9: =VLOOKUP(A9,saisie!B$5:W$44,11,0) ->  | M9: =VLOOKUP(A9,saisie!B$5:W$44,13,0) ->  | N9: =VLOOKUP(A9,saisie!B$5:W$44,14,0) ->  | O9: =VLOOKUP(A9,saisie!B$5:W$44,15,0) ->  | P9: =VLOOKUP(A9,saisie!B$5:W$44,16,0) ->  | R9: =VLOOKUP(A9,saisie!B$5:W$44,18,0) ->  | T9: =VLOOKUP(A9,saisie!B$5:W$44,20,0) -> 
A10: =IF(INFO!B8>5,6,"") ->  | B10: =VLOOKUP(A10,saisie!B$5:W$44,2,0) ->  | C10: =VLOOKUP(A10,saisie!B$5:W$44,3,0) ->  | D10: =VLOOKUP(A10,saisie!B$5:W$44,4,0) ->  | E10: =VLOOKUP(A10,saisie!B$5:W$44,5,0) ->  | F10: =VLOOKUP(A10,saisie!B$5:W$44,6,0) ->  | H10: =VLOOKUP(A10,saisie!B$5:W$44,8,0) ->  | I10: =VLOOKUP(A10,saisie!B$5:W$44,9,0) ->  | J10: =VLOOKUP(A10,saisie!B$5:W$44,10,0) ->  | K10: =VLOOKUP(A10,saisie!B$5:W$44,11,0) ->  | M10: =VLOOKUP(A10,saisie!B$5:W$44,13,0) ->  | N10: =VLOOKUP(A10,saisie!B$5:W$44,14,0) ->  | O10: =VLOOKUP(A10,saisie!B$5:W$44,15,0) ->  | P10: =VLOOKUP(A10,saisie!B$5:W$44,16,0) ->  | R10: =VLOOKUP(A10,saisie!B$5:W$44,18,0) ->  | T10: =VLOOKUP(A10,saisie!B$5:W$44,20,0) -> 
A11: =IF(INFO!B8>6,7,"") ->  | B11: =VLOOKUP(A11,saisie!B$5:W$44,2,0) ->  | C11: =VLOOKUP(A11,saisie!B$5:W$44,3,0) ->  | D11: =VLOOKUP(A11,saisie!B$5:W$44,4,0) ->  | E11: =VLOOKUP(A11,saisie!B$5:W$44,5,0) ->  | F11: =VLOOKUP(A11,saisie!B$5:W$44,6,0) ->  | H11: =VLOOKUP(A11,saisie!B$5:W$44,8,0) ->  | I11: =VLOOKUP(A11,saisie!B$5:W$44,9,0) ->  | J11: =VLOOKUP(A11,saisie!B$5:W$44,10,0) ->  | K11: =VLOOKUP(A11,saisie!B$5:W$44,11,0) ->  | M11: =VLOOKUP(A11,saisie!B$5:W$44,13,0) ->  | N11: =VLOOKUP(A11,saisie!B$5:W$44,14,0) ->  | O11: =VLOOKUP(A11,saisie!B$5:W$44,15,0) ->  | P11: =VLOOKUP(A11,saisie!B$5:W$44,16,0) ->  | R11: =VLOOKUP(A11,saisie!B$5:W$44,18,0) ->  | T11: =VLOOKUP(A11,saisie!B$5:W$44,20,0) -> 
A12: =IF(INFO!B8>7,8,"") ->  | B12: =VLOOKUP(A12,saisie!B$5:W$44,2,0) ->  | C12: =VLOOKUP(A12,saisie!B$5:W$44,3,0) ->  | D12: =VLOOKUP(A12,saisie!B$5:W$44,4,0) ->  | E12: =VLOOKUP(A12,saisie!B$5:W$44,5,0) ->  | F12: =VLOOKUP(A12,saisie!B$5:W$44,6,0) ->  | H12: =VLOOKUP(A12,saisie!B$5:W$44,8,0) ->  | I12: =VLOOKUP(A12,saisie!B$5:W$44,9,0) ->  | J12: =VLOOKUP(A12,saisie!B$5:W$44,10,0) ->  | K12: =VLOOKUP(A12,saisie!B$5:W$44,11,0) ->  | M12: =VLOOKUP(A12,saisie!B$5:W$44,13,0) ->  | N12: =VLOOKUP(A12,saisie!B$5:W$44,14,0) ->  | O12: =VLOOKUP(A12,saisie!B$5:W$44,15,0) ->  | P12: =VLOOKUP(A12,saisie!B$5:W$44,16,0) ->  | R12: =VLOOKUP(A12,saisie!B$5:W$44,18,0) ->  | T12: =VLOOKUP(A12,saisie!B$5:W$44,20,0) -> 
A13: =IF(INFO!B8>8,9,"") ->  | B13: =VLOOKUP(A13,saisie!B$5:W$44,2,0) ->  | C13: =VLOOKUP(A13,saisie!B$5:W$44,3,0) ->  | D13: =VLOOKUP(A13,saisie!B$5:W$44,4,0) ->  | E13: =VLOOKUP(A13,saisie!B$5:W$44,5,0) ->  | F13: =VLOOKUP(A13,saisie!B$5:W$44,6,0) ->  | H13: =VLOOKUP(A13,saisie!B$5:W$44,8,0) ->  | I13: =VLOOKUP(A13,saisie!B$5:W$44,9,0) ->  | J13: =VLOOKUP(A13,saisie!B$5:W$44,10,0) ->  | K13: =VLOOKUP(A13,saisie!B$5:W$44,11,0) ->  | M13: =VLOOKUP(A13,saisie!B$5:W$44,13,0) ->  | N13: =VLOOKUP(A13,saisie!B$5:W$44,14,0) ->  | O13: =VLOOKUP(A13,saisie!B$5:W$44,15,0) ->  | P13: =VLOOKUP(A13,saisie!B$5:W$44,16,0) ->  | R13: =VLOOKUP(A13,saisie!B$5:W$44,18,0) ->  | T13: =VLOOKUP(A13,saisie!B$5:W$44,20,0) -> 
A14: =IF(INFO!B8>9,10,"") ->  | B14: =VLOOKUP(A14,saisie!B$5:W$44,2,0) ->  | C14: =VLOOKUP(A14,saisie!B$5:W$44,3,0) ->  | D14: =VLOOKUP(A14,saisie!B$5:W$44,4,0) ->  | E14: =VLOOKUP(A14,saisie!B$5:W$44,5,0) ->  | F14: =VLOOKUP(A14,saisie!B$5:W$44,6,0) ->  | H14: =VLOOKUP(A14,saisie!B$5:W$44,8,0) ->  | I14: =VLOOKUP(A14,saisie!B$5:W$44,9,0) ->  | J14: =VLOOKUP(A14,saisie!B$5:W$44,10,0) ->  | K14: =VLOOKUP(A14,saisie!B$5:W$44,11,0) ->  | M14: =VLOOKUP(A14,saisie!B$5:W$44,13,0) ->  | N14: =VLOOKUP(A14,saisie!B$5:W$44,14,0) ->  | O14: =VLOOKUP(A14,saisie!B$5:W$44,15,0) ->  | P14: =VLOOKUP(A14,saisie!B$5:W$44,16,0) ->  | R14: =VLOOKUP(A14,saisie!B$5:W$44,18,0) ->  | T14: =VLOOKUP(A14,saisie!B$5:W$44,20,0) -> 
A15: =IF(INFO!B8>10,11,"") ->  | B15: =VLOOKUP(A15,saisie!B$5:W$44,2,0) ->  | C15: =VLOOKUP(A15,saisie!B$5:W$44,3,0) ->  | D15: =VLOOKUP(A15,saisie!B$5:W$44,4,0) ->  | E15: =VLOOKUP(A15,saisie!B$5:W$44,5,0) ->  | F15: =VLOOKUP(A15,saisie!B$5:W$44,6,0) ->  | H15: =VLOOKUP(A15,saisie!B$5:W$44,8,0) ->  | I15: =VLOOKUP(A15,saisie!B$5:W$44,9,0) ->  | J15: =VLOOKUP(A15,saisie!B$5:W$44,10,0) ->  | K15: =VLOOKUP(A15,saisie!B$5:W$44,11,0) ->  | M15: =VLOOKUP(A15,saisie!B$5:W$44,13,0) ->  | N15: =VLOOKUP(A15,saisie!B$5:W$44,14,0) ->  | O15: =VLOOKUP(A15,saisie!B$5:W$44,15,0) ->  | P15: =VLOOKUP(A15,saisie!B$5:W$44,16,0) ->  | R15: =VLOOKUP(A15,saisie!B$5:W$44,18,0) ->  | T15: =VLOOKUP(A15,saisie!B$5:W$44,20,0) -> 
A16: =IF(INFO!B8>11,12,"") ->  | B16: =VLOOKUP(A16,saisie!B$5:W$44,2,0) ->  | C16: =VLOOKUP(A16,saisie!B$5:W$44,3,0) ->  | D16: =VLOOKUP(A16,saisie!B$5:W$44,4,0) ->  | E16: =VLOOKUP(A16,saisie!B$5:W$44,5,0) ->  | F16: =VLOOKUP(A16,saisie!B$5:W$44,6,0) ->  | H16: =VLOOKUP(A16,saisie!B$5:W$44,8,0) ->  | I16: =VLOOKUP(A16,saisie!B$5:W$44,9,0) ->  | J16: =VLOOKUP(A16,saisie!B$5:W$44,10,0) ->  | K16: =VLOOKUP(A16,saisie!B$5:W$44,11,0) ->  | M16: =VLOOKUP(A16,saisie!B$5:W$44,13,0) ->  | N16: =VLOOKUP(A16,saisie!B$5:W$44,14,0) ->  | O16: =VLOOKUP(A16,saisie!B$5:W$44,15,0) ->  | P16: =VLOOKUP(A16,saisie!B$5:W$44,16,0) ->  | R16: =VLOOKUP(A16,saisie!B$5:W$44,18,0) ->  | T16: =VLOOKUP(A16,saisie!B$5:W$44,20,0) -> 
A17: =IF(INFO!B8>12,13,"") ->  | B17: =VLOOKUP(A17,saisie!B$5:W$44,2,0) ->  | C17: =VLOOKUP(A17,saisie!B$5:W$44,3,0) ->  | D17: =VLOOKUP(A17,saisie!B$5:W$44,4,0) ->  | E17: =VLOOKUP(A17,saisie!B$5:W$44,5,0) ->  | F17: =VLOOKUP(A17,saisie!B$5:W$44,6,0) ->  | H17: =VLOOKUP(A17,saisie!B$5:W$44,8,0) ->  | I17: =VLOOKUP(A17,saisie!B$5:W$44,9,0) ->  | J17: =VLOOKUP(A17,saisie!B$5:W$44,10,0) ->  | K17: =VLOOKUP(A17,saisie!B$5:W$44,11,0) ->  | M17: =VLOOKUP(A17,saisie!B$5:W$44,13,0) ->  | N17: =VLOOKUP(A17,saisie!B$5:W$44,14,0) ->  | O17: =VLOOKUP(A17,saisie!B$5:W$44,15,0) ->  | P17: =VLOOKUP(A17,saisie!B$5:W$44,16,0) ->  | R17: =VLOOKUP(A17,saisie!B$5:W$44,18,0) ->  | T17: =VLOOKUP(A17,saisie!B$5:W$44,20,0) -> 
A18: =IF(INFO!B8>13,14,"") ->  | B18: =VLOOKUP(A18,saisie!B$5:W$44,2,0) ->  | C18: =VLOOKUP(A18,saisie!B$5:W$44,3,0) ->  | D18: =VLOOKUP(A18,saisie!B$5:W$44,4,0) ->  | E18: =VLOOKUP(A18,saisie!B$5:W$44,5,0) ->  | F18: =VLOOKUP(A18,saisie!B$5:W$44,6,0) ->  | H18: =VLOOKUP(A18,saisie!B$5:W$44,8,0) ->  | I18: =VLOOKUP(A18,saisie!B$5:W$44,9,0) ->  | J18: =VLOOKUP(A18,saisie!B$5:W$44,10,0) ->  | K18: =VLOOKUP(A18,saisie!B$5:W$44,11,0) ->  | M18: =VLOOKUP(A18,saisie!B$5:W$44,13,0) ->  | N18: =VLOOKUP(A18,saisie!B$5:W$44,14,0) ->  | O18: =VLOOKUP(A18,saisie!B$5:W$44,15,0) ->  | P18: =VLOOKUP(A18,saisie!B$5:W$44,16,0) ->  | R18: =VLOOKUP(A18,saisie!B$5:W$44,18,0) ->  | T18: =VLOOKUP(A18,saisie!B$5:W$44,20,0) -> 
A19: =IF(INFO!B8>14,15,"") ->  | B19: =VLOOKUP(A19,saisie!B$5:W$44,2,0) ->  | C19: =VLOOKUP(A19,saisie!B$5:W$44,3,0) ->  | D19: =VLOOKUP(A19,saisie!B$5:W$44,4,0) ->  | E19: =VLOOKUP(A19,saisie!B$5:W$44,5,0) ->  | F19: =VLOOKUP(A19,saisie!B$5:W$44,6,0) ->  | H19: =VLOOKUP(A19,saisie!B$5:W$44,8,0) ->  | I19: =VLOOKUP(A19,saisie!B$5:W$44,9,0) ->  | J19: =VLOOKUP(A19,saisie!B$5:W$44,10,0) ->  | K19: =VLOOKUP(A19,saisie!B$5:W$44,11,0) ->  | M19: =VLOOKUP(A19,saisie!B$5:W$44,13,0) ->  | N19: =VLOOKUP(A19,saisie!B$5:W$44,14,0) ->  | O19: =VLOOKUP(A19,saisie!B$5:W$44,15,0) ->  | P19: =VLOOKUP(A19,saisie!B$5:W$44,16,0) ->  | R19: =VLOOKUP(A19,saisie!B$5:W$44,18,0) ->  | T19: =VLOOKUP(A19,saisie!B$5:W$44,20,0) -> 
A20: =IF(INFO!B8>15,16,"") ->  | B20: =VLOOKUP(A20,saisie!B$5:W$44,2,0) ->  | C20: =VLOOKUP(A20,saisie!B$5:W$44,3,0) ->  | D20: =VLOOKUP(A20,saisie!B$5:W$44,4,0) ->  | E20: =VLOOKUP(A20,saisie!B$5:W$44,5,0) ->  | F20: =VLOOKUP(A20,saisie!B$5:W$44,6,0) ->  | H20: =VLOOKUP(A20,saisie!B$5:W$44,8,0) ->  | I20: =VLOOKUP(A20,saisie!B$5:W$44,9,0) ->  | J20: =VLOOKUP(A20,saisie!B$5:W$44,10,0) ->  | K20: =VLOOKUP(A20,saisie!B$5:W$44,11,0) ->  | M20: =VLOOKUP(A20,saisie!B$5:W$44,13,0) ->  | N20: =VLOOKUP(A20,saisie!B$5:W$44,14,0) ->  | O20: =VLOOKUP(A20,saisie!B$5:W$44,15,0) ->  | P20: =VLOOKUP(A20,saisie!B$5:W$44,16,0) ->  | R20: =VLOOKUP(A20,saisie!B$5:W$44,18,0) ->  | T20: =VLOOKUP(A20,saisie!B$5:W$44,20,0) -> 
A21: =IF(INFO!B8>16,17,"") ->  | B21: =VLOOKUP(A21,saisie!B$5:W$44,2,0) ->  | C21: =VLOOKUP(A21,saisie!B$5:W$44,3,0) ->  | D21: =VLOOKUP(A21,saisie!B$5:W$44,4,0) ->  | E21: =VLOOKUP(A21,saisie!B$5:W$44,5,0) ->  | F21: =VLOOKUP(A21,saisie!B$5:W$44,6,0) ->  | H21: =VLOOKUP(A21,saisie!B$5:W$44,8,0) ->  | I21: =VLOOKUP(A21,saisie!B$5:W$44,9,0) ->  | J21: =VLOOKUP(A21,saisie!B$5:W$44,10,0) ->  | K21: =VLOOKUP(A21,saisie!B$5:W$44,11,0) ->  | M21: =VLOOKUP(A21,saisie!B$5:W$44,13,0) ->  | N21: =VLOOKUP(A21,saisie!B$5:W$44,14,0) ->  | O21: =VLOOKUP(A21,saisie!B$5:W$44,15,0) ->  | P21: =VLOOKUP(A21,saisie!B$5:W$44,16,0) ->  | R21: =VLOOKUP(A21,saisie!B$5:W$44,18,0) ->  | T21: =VLOOKUP(A21,saisie!B$5:W$44,20,0) -> 
A22: =IF(INFO!B8>17,18,"") ->  | B22: =VLOOKUP(A22,saisie!B$5:W$44,2,0) ->  | C22: =VLOOKUP(A22,saisie!B$5:W$44,3,0) ->  | D22: =VLOOKUP(A22,saisie!B$5:W$44,4,0) ->  | E22: =VLOOKUP(A22,saisie!B$5:W$44,5,0) ->  | F22: =VLOOKUP(A22,saisie!B$5:W$44,6,0) ->  | H22: =VLOOKUP(A22,saisie!B$5:W$44,8,0) ->  | I22: =VLOOKUP(A22,saisie!B$5:W$44,9,0) ->  | J22: =VLOOKUP(A22,saisie!B$5:W$44,10,0) ->  | K22: =VLOOKUP(A22,saisie!B$5:W$44,11,0) ->  | M22: =VLOOKUP(A22,saisie!B$5:W$44,13,0) ->  | N22: =VLOOKUP(A22,saisie!B$5:W$44,14,0) ->  | O22: =VLOOKUP(A22,saisie!B$5:W$44,15,0) ->  | P22: =VLOOKUP(A22,saisie!B$5:W$44,16,0) ->  | R22: =VLOOKUP(A22,saisie!B$5:W$44,18,0) ->  | T22: =VLOOKUP(A22,saisie!B$5:W$44,20,0) -> 
A23: =IF(INFO!B8>18,19,"") ->  | B23: =VLOOKUP(A23,saisie!B$5:W$44,2,0) ->  | C23: =VLOOKUP(A23,saisie!B$5:W$44,3,0) ->  | D23: =VLOOKUP(A23,saisie!B$5:W$44,4,0) ->  | E23: =VLOOKUP(A23,saisie!B$5:W$44,5,0) ->  | F23: =VLOOKUP(A23,saisie!B$5:W$44,6,0) ->  | H23: =VLOOKUP(A23,saisie!B$5:W$44,8,0) ->  | I23: =VLOOKUP(A23,saisie!B$5:W$44,9,0) ->  | J23: =VLOOKUP(A23,saisie!B$5:W$44,10,0) ->  | K23: =VLOOKUP(A23,saisie!B$5:W$44,11,0) ->  | M23: =VLOOKUP(A23,saisie!B$5:W$44,13,0) ->  | N23: =VLOOKUP(A23,saisie!B$5:W$44,14,0) ->  | O23: =VLOOKUP(A23,saisie!B$5:W$44,15,0) ->  | P23: =VLOOKUP(A23,saisie!B$5:W$44,16,0) ->  | R23: =VLOOKUP(A23,saisie!B$5:W$44,18,0) ->  | T23: =VLOOKUP(A23,saisie!B$5:W$44,20,0) -> 
A24: =IF(INFO!B8>19,20,"") ->  | B24: =VLOOKUP(A24,saisie!B$5:W$44,2,0) ->  | C24: =VLOOKUP(A24,saisie!B$5:W$44,3,0) ->  | D24: =VLOOKUP(A24,saisie!B$5:W$44,4,0) ->  | E24: =VLOOKUP(A24,saisie!B$5:W$44,5,0) ->  | F24: =VLOOKUP(A24,saisie!B$5:W$44,6,0) ->  | H24: =VLOOKUP(A24,saisie!B$5:W$44,8,0) ->  | I24: =VLOOKUP(A24,saisie!B$5:W$44,9,0) ->  | J24: =VLOOKUP(A24,saisie!B$5:W$44,10,0) ->  | K24: =VLOOKUP(A24,saisie!B$5:W$44,11,0) ->  | M24: =VLOOKUP(A24,saisie!B$5:W$44,13,0) ->  | N24: =VLOOKUP(A24,saisie!B$5:W$44,14,0) ->  | O24: =VLOOKUP(A24,saisie!B$5:W$44,15,0) ->  | P24: =VLOOKUP(A24,saisie!B$5:W$44,16,0) ->  | R24: =VLOOKUP(A24,saisie!B$5:W$44,18,0) ->  | T24: =VLOOKUP(A24,saisie!B$5:W$44,20,0) -> 
A25: =IF(INFO!B8>20,21,"") ->  | B25: =VLOOKUP(A25,saisie!B$5:W$44,2,0) ->  | C25: =VLOOKUP(A25,saisie!B$5:W$44,3,0) ->  | D25: =VLOOKUP(A25,saisie!B$5:W$44,4,0) ->  | E25: =VLOOKUP(A25,saisie!B$5:W$44,5,0) ->  | F25: =VLOOKUP(A25,saisie!B$5:W$44,6,0) ->  | H25: =VLOOKUP(A25,saisie!B$5:W$44,8,0) ->  | I25: =VLOOKUP(A25,saisie!B$5:W$44,9,0) ->  | J25: =VLOOKUP(A25,saisie!B$5:W$44,10,0) ->  | K25: =VLOOKUP(A25,saisie!B$5:W$44,11,0) ->  | M25: =VLOOKUP(A25,saisie!B$5:W$44,13,0) ->  | N25: =VLOOKUP(A25,saisie!B$5:W$44,14,0) ->  | O25: =VLOOKUP(A25,saisie!B$5:W$44,15,0) ->  | P25: =VLOOKUP(A25,saisie!B$5:W$44,16,0) ->  | R25: =VLOOKUP(A25,saisie!B$5:W$44,18,0) ->  | T25: =VLOOKUP(A25,saisie!B$5:W$44,20,0) -> 
A26: =IF(INFO!B8>21,22,"") ->  | B26: =VLOOKUP(A26,saisie!B$5:W$44,2,0) ->  | C26: =VLOOKUP(A26,saisie!B$5:W$44,3,0) ->  | D26: =VLOOKUP(A26,saisie!B$5:W$44,4,0) ->  | E26: =VLOOKUP(A26,saisie!B$5:W$44,5,0) ->  | F26: =VLOOKUP(A26,saisie!B$5:W$44,6,0) ->  | H26: =VLOOKUP(A26,saisie!B$5:W$44,8,0) ->  | I26: =VLOOKUP(A26,saisie!B$5:W$44,9,0) ->  | J26: =VLOOKUP(A26,saisie!B$5:W$44,10,0) ->  | K26: =VLOOKUP(A26,saisie!B$5:W$44,11,0) ->  | M26: =VLOOKUP(A26,saisie!B$5:W$44,13,0) ->  | N26: =VLOOKUP(A26,saisie!B$5:W$44,14,0) ->  | O26: =VLOOKUP(A26,saisie!B$5:W$44,15,0) ->  | P26: =VLOOKUP(A26,saisie!B$5:W$44,16,0) ->  | R26: =VLOOKUP(A26,saisie!B$5:W$44,18,0) ->  | T26: =VLOOKUP(A26,saisie!B$5:W$44,20,0) -> 
A27: =IF(INFO!B8>22,23,"") ->  | B27: =VLOOKUP(A27,saisie!B$5:W$44,2,0) ->  | C27: =VLOOKUP(A27,saisie!B$5:W$44,3,0) ->  | D27: =VLOOKUP(A27,saisie!B$5:W$44,4,0) ->  | E27: =VLOOKUP(A27,saisie!B$5:W$44,5,0) ->  | F27: =VLOOKUP(A27,saisie!B$5:W$44,6,0) ->  | H27: =VLOOKUP(A27,saisie!B$5:W$44,8,0) ->  | I27: =VLOOKUP(A27,saisie!B$5:W$44,9,0) ->  | J27: =VLOOKUP(A27,saisie!B$5:W$44,10,0) ->  | K27: =VLOOKUP(A27,saisie!B$5:W$44,11,0) ->  | M27: =VLOOKUP(A27,saisie!B$5:W$44,13,0) ->  | N27: =VLOOKUP(A27,saisie!B$5:W$44,14,0) ->  | O27: =VLOOKUP(A27,saisie!B$5:W$44,15,0) ->  | P27: =VLOOKUP(A27,saisie!B$5:W$44,16,0) ->  | R27: =VLOOKUP(A27,saisie!B$5:W$44,18,0) ->  | T27: =VLOOKUP(A27,saisie!B$5:W$44,20,0) -> 
A28: =IF(INFO!B8>23,24,"") ->  | B28: =VLOOKUP(A28,saisie!B$5:W$44,2,0) ->  | C28: =VLOOKUP(A28,saisie!B$5:W$44,3,0) ->  | D28: =VLOOKUP(A28,saisie!B$5:W$44,4,0) ->  | E28: =VLOOKUP(A28,saisie!B$5:W$44,5,0) ->  | F28: =VLOOKUP(A28,saisie!B$5:W$44,6,0) ->  | H28: =VLOOKUP(A28,saisie!B$5:W$44,8,0) ->  | I28: =VLOOKUP(A28,saisie!B$5:W$44,9,0) ->  | J28: =VLOOKUP(A28,saisie!B$5:W$44,10,0) ->  | K28: =VLOOKUP(A28,saisie!B$5:W$44,11,0) ->  | M28: =VLOOKUP(A28,saisie!B$5:W$44,13,0) ->  | N28: =VLOOKUP(A28,saisie!B$5:W$44,14,0) ->  | O28: =VLOOKUP(A28,saisie!B$5:W$44,15,0) ->  | P28: =VLOOKUP(A28,saisie!B$5:W$44,16,0) ->  | R28: =VLOOKUP(A28,saisie!B$5:W$44,18,0) ->  | T28: =VLOOKUP(A28,saisie!B$5:W$44,20,0) -> 
A29: =IF(INFO!B8>24,25,"") ->  | B29: =VLOOKUP(A29,saisie!B$5:W$44,2,0) ->  | C29: =VLOOKUP(A29,saisie!B$5:W$44,3,0) ->  | D29: =VLOOKUP(A29,saisie!B$5:W$44,4,0) ->  | E29: =VLOOKUP(A29,saisie!B$5:W$44,5,0) ->  | F29: =VLOOKUP(A29,saisie!B$5:W$44,6,0) ->  | H29: =VLOOKUP(A29,saisie!B$5:W$44,8,0) ->  | I29: =VLOOKUP(A29,saisie!B$5:W$44,9,0) ->  | J29: =VLOOKUP(A29,saisie!B$5:W$44,10,0) ->  | K29: =VLOOKUP(A29,saisie!B$5:W$44,11,0) ->  | M29: =VLOOKUP(A29,saisie!B$5:W$44,13,0) ->  | N29: =VLOOKUP(A29,saisie!B$5:W$44,14,0) ->  | O29: =VLOOKUP(A29,saisie!B$5:W$44,15,0) ->  | P29: =VLOOKUP(A29,saisie!B$5:W$44,16,0) ->  | R29: =VLOOKUP(A29,saisie!B$5:W$44,18,0) ->  | T29: =VLOOKUP(A29,saisie!B$5:W$44,20,0) -> 
A30: =IF(INFO!B8>25,26,"") ->  | B30: =VLOOKUP(A30,saisie!B$5:W$44,2,0) ->  | C30: =VLOOKUP(A30,saisie!B$5:W$44,3,0) ->  | D30: =VLOOKUP(A30,saisie!B$5:W$44,4,0) ->  | E30: =VLOOKUP(A30,saisie!B$5:W$44,5,0) ->  | F30: =VLOOKUP(A30,saisie!B$5:W$44,6,0) ->  | H30: =VLOOKUP(A30,saisie!B$5:W$44,8,0) ->  | I30: =VLOOKUP(A30,saisie!B$5:W$44,9,0) ->  | J30: =VLOOKUP(A30,saisie!B$5:W$44,10,0) ->  | K30: =VLOOKUP(A30,saisie!B$5:W$44,11,0) ->  | M30: =VLOOKUP(A30,saisie!B$5:W$44,13,0) ->  | N30: =VLOOKUP(A30,saisie!B$5:W$44,14,0) ->  | O30: =VLOOKUP(A30,saisie!B$5:W$44,15,0) ->  | P30: =VLOOKUP(A30,saisie!B$5:W$44,16,0) ->  | R30: =VLOOKUP(A30,saisie!B$5:W$44,18,0) ->  | T30: =VLOOKUP(A30,saisie!B$5:W$44,20,0) -> 
A31: =IF(INFO!B8>26,27,"") ->  | B31: =VLOOKUP(A31,saisie!B$5:W$44,2,0) ->  | C31: =VLOOKUP(A31,saisie!B$5:W$44,3,0) ->  | D31: =VLOOKUP(A31,saisie!B$5:W$44,4,0) ->  | E31: =VLOOKUP(A31,saisie!B$5:W$44,5,0) ->  | F31: =VLOOKUP(A31,saisie!B$5:W$44,6,0) ->  | H31: =VLOOKUP(A31,saisie!B$5:W$44,8,0) ->  | I31: =VLOOKUP(A31,saisie!B$5:W$44,9,0) ->  | J31: =VLOOKUP(A31,saisie!B$5:W$44,10,0) ->  | K31: =VLOOKUP(A31,saisie!B$5:W$44,11,0) ->  | M31: =VLOOKUP(A31,saisie!B$5:W$44,13,0) ->  | N31: =VLOOKUP(A31,saisie!B$5:W$44,14,0) ->  | O31: =VLOOKUP(A31,saisie!B$5:W$44,15,0) ->  | P31: =VLOOKUP(A31,saisie!B$5:W$44,16,0) ->  | R31: =VLOOKUP(A31,saisie!B$5:W$44,18,0) ->  | T31: =VLOOKUP(A31,saisie!B$5:W$44,20,0) -> 
A32: =IF(INFO!B8>27,28,"") ->  | B32: =VLOOKUP(A32,saisie!B$5:W$44,2,0) ->  | C32: =VLOOKUP(A32,saisie!B$5:W$44,3,0) ->  | D32: =VLOOKUP(A32,saisie!B$5:W$44,4,0) ->  | E32: =VLOOKUP(A32,saisie!B$5:W$44,5,0) ->  | F32: =VLOOKUP(A32,saisie!B$5:W$44,6,0) ->  | H32: =VLOOKUP(A32,saisie!B$5:W$44,8,0) ->  | I32: =VLOOKUP(A32,saisie!B$5:W$44,9,0) ->  | J32: =VLOOKUP(A32,saisie!B$5:W$44,10,0) ->  | K32: =VLOOKUP(A32,saisie!B$5:W$44,11,0) ->  | M32: =VLOOKUP(A32,saisie!B$5:W$44,13,0) ->  | N32: =VLOOKUP(A32,saisie!B$5:W$44,14,0) ->  | O32: =VLOOKUP(A32,saisie!B$5:W$44,15,0) ->  | P32: =VLOOKUP(A32,saisie!B$5:W$44,16,0) ->  | R32: =VLOOKUP(A32,saisie!B$5:W$44,18,0) ->  | T32: =VLOOKUP(A32,saisie!B$5:W$44,20,0) -> 
A33: =IF(INFO!B8>28,29,"") ->  | B33: =VLOOKUP(A33,saisie!B$5:W$44,2,0) ->  | C33: =VLOOKUP(A33,saisie!B$5:W$44,3,0) ->  | D33: =VLOOKUP(A33,saisie!B$5:W$44,4,0) ->  | E33: =VLOOKUP(A33,saisie!B$5:W$44,5,0) ->  | F33: =VLOOKUP(A33,saisie!B$5:W$44,6,0) ->  | H33: =VLOOKUP(A33,saisie!B$5:W$44,8,0) ->  | I33: =VLOOKUP(A33,saisie!B$5:W$44,9,0) ->  | J33: =VLOOKUP(A33,saisie!B$5:W$44,10,0) ->  | K33: =VLOOKUP(A33,saisie!B$5:W$44,11,0) ->  | M33: =VLOOKUP(A33,saisie!B$5:W$44,13,0) ->  | N33: =VLOOKUP(A33,saisie!B$5:W$44,14,0) ->  | O33: =VLOOKUP(A33,saisie!B$5:W$44,15,0) ->  | P33: =VLOOKUP(A33,saisie!B$5:W$44,16,0) ->  | R33: =VLOOKUP(A33,saisie!B$5:W$44,18,0) ->  | T33: =VLOOKUP(A33,saisie!B$5:W$44,20,0) -> 
A34: =IF(INFO!B8>29,30,"") ->  | B34: =VLOOKUP(A34,saisie!B$5:W$44,2,0) ->  | C34: =VLOOKUP(A34,saisie!B$5:W$44,3,0) ->  | D34: =VLOOKUP(A34,saisie!B$5:W$44,4,0) ->  | E34: =VLOOKUP(A34,saisie!B$5:W$44,5,0) ->  | F34: =VLOOKUP(A34,saisie!B$5:W$44,6,0) ->  | H34: =VLOOKUP(A34,saisie!B$5:W$44,8,0) ->  | I34: =VLOOKUP(A34,saisie!B$5:W$44,9,0) ->  | J34: =VLOOKUP(A34,saisie!B$5:W$44,10,0) ->  | K34: =VLOOKUP(A34,saisie!B$5:W$44,11,0) ->  | M34: =VLOOKUP(A34,saisie!B$5:W$44,13,0) ->  | N34: =VLOOKUP(A34,saisie!B$5:W$44,14,0) ->  | O34: =VLOOKUP(A34,saisie!B$5:W$44,15,0) ->  | P34: =VLOOKUP(A34,saisie!B$5:W$44,16,0) ->  | R34: =VLOOKUP(A34,saisie!B$5:W$44,18,0) ->  | T34: =VLOOKUP(A34,saisie!B$5:W$44,20,0) -> 
A35: =IF(INFO!B8>30,31,"") ->  | B35: =VLOOKUP(A35,saisie!B$5:W$44,2,0) ->  | C35: =VLOOKUP(A35,saisie!B$5:W$44,3,0) ->  | D35: =VLOOKUP(A35,saisie!B$5:W$44,4,0) ->  | E35: =VLOOKUP(A35,saisie!B$5:W$44,5,0) ->  | F35: =VLOOKUP(A35,saisie!B$5:W$44,6,0) ->  | H35: =VLOOKUP(A35,saisie!B$5:W$44,8,0) ->  | I35: =VLOOKUP(A35,saisie!B$5:W$44,9,0) ->  | J35: =VLOOKUP(A35,saisie!B$5:W$44,10,0) ->  | K35: =VLOOKUP(A35,saisie!B$5:W$44,11,0) ->  | M35: =VLOOKUP(A35,saisie!B$5:W$44,13,0) ->  | N35: =VLOOKUP(A35,saisie!B$5:W$44,14,0) ->  | O35: =VLOOKUP(A35,saisie!B$5:W$44,15,0) ->  | P35: =VLOOKUP(A35,saisie!B$5:W$44,16,0) ->  | R35: =VLOOKUP(A35,saisie!B$5:W$44,18,0) ->  | T35: =VLOOKUP(A35,saisie!B$5:W$44,20,0) -> 
A36: =IF(INFO!B8>31,32,"") ->  | B36: =VLOOKUP(A36,saisie!B$5:W$44,2,0) ->  | C36: =VLOOKUP(A36,saisie!B$5:W$44,3,0) ->  | D36: =VLOOKUP(A36,saisie!B$5:W$44,4,0) ->  | E36: =VLOOKUP(A36,saisie!B$5:W$44,5,0) ->  | F36: =VLOOKUP(A36,saisie!B$5:W$44,6,0) ->  | H36: =VLOOKUP(A36,saisie!B$5:W$44,8,0) ->  | I36: =VLOOKUP(A36,saisie!B$5:W$44,9,0) ->  | J36: =VLOOKUP(A36,saisie!B$5:W$44,10,0) ->  | K36: =VLOOKUP(A36,saisie!B$5:W$44,11,0) ->  | M36: =VLOOKUP(A36,saisie!B$5:W$44,13,0) ->  | N36: =VLOOKUP(A36,saisie!B$5:W$44,14,0) ->  | O36: =VLOOKUP(A36,saisie!B$5:W$44,15,0) ->  | P36: =VLOOKUP(A36,saisie!B$5:W$44,16,0) ->  | R36: =VLOOKUP(A36,saisie!B$5:W$44,18,0) ->  | T36: =VLOOKUP(A36,saisie!B$5:W$44,20,0) -> 
A37: =IF(INFO!B8>32,33,"") ->  | B37: =VLOOKUP(A37,saisie!B$5:W$44,2,0) ->  | C37: =VLOOKUP(A37,saisie!B$5:W$44,3,0) ->  | D37: =VLOOKUP(A37,saisie!B$5:W$44,4,0) ->  | E37: =VLOOKUP(A37,saisie!B$5:W$44,5,0) ->  | F37: =VLOOKUP(A37,saisie!B$5:W$44,6,0) ->  | H37: =VLOOKUP(A37,saisie!B$5:W$44,8,0) ->  | I37: =VLOOKUP(A37,saisie!B$5:W$44,9,0) ->  | J37: =VLOOKUP(A37,saisie!B$5:W$44,10,0) ->  | K37: =VLOOKUP(A37,saisie!B$5:W$44,11,0) ->  | M37: =VLOOKUP(A37,saisie!B$5:W$44,13,0) ->  | N37: =VLOOKUP(A37,saisie!B$5:W$44,14,0) ->  | O37: =VLOOKUP(A37,saisie!B$5:W$44,15,0) ->  | P37: =VLOOKUP(A37,saisie!B$5:W$44,16,0) ->  | R37: =VLOOKUP(A37,saisie!B$5:W$44,18,0) ->  | T37: =VLOOKUP(A37,saisie!B$5:W$44,20,0) -> 
A38: =IF(INFO!B8>33,34,"") ->  | B38: =VLOOKUP(A38,saisie!B$5:W$44,2,0) ->  | C38: =VLOOKUP(A38,saisie!B$5:W$44,3,0) ->  | D38: =VLOOKUP(A38,saisie!B$5:W$44,4,0) ->  | E38: =VLOOKUP(A38,saisie!B$5:W$44,5,0) ->  | F38: =VLOOKUP(A38,saisie!B$5:W$44,6,0) ->  | H38: =VLOOKUP(A38,saisie!B$5:W$44,8,0) ->  | I38: =VLOOKUP(A38,saisie!B$5:W$44,9,0) ->  | J38: =VLOOKUP(A38,saisie!B$5:W$44,10,0) ->  | K38: =VLOOKUP(A38,saisie!B$5:W$44,11,0) ->  | M38: =VLOOKUP(A38,saisie!B$5:W$44,13,0) ->  | N38: =VLOOKUP(A38,saisie!B$5:W$44,14,0) ->  | O38: =VLOOKUP(A38,saisie!B$5:W$44,15,0) ->  | P38: =VLOOKUP(A38,saisie!B$5:W$44,16,0) ->  | R38: =VLOOKUP(A38,saisie!B$5:W$44,18,0) ->  | T38: =VLOOKUP(A38,saisie!B$5:W$44,20,0) -> 
A39: =IF(INFO!B8>34,35,"") ->  | B39: =VLOOKUP(A39,saisie!B$5:W$44,2,0) ->  | C39: =VLOOKUP(A39,saisie!B$5:W$44,3,0) ->  | D39: =VLOOKUP(A39,saisie!B$5:W$44,4,0) ->  | E39: =VLOOKUP(A39,saisie!B$5:W$44,5,0) ->  | F39: =VLOOKUP(A39,saisie!B$5:W$44,6,0) ->  | H39: =VLOOKUP(A39,saisie!B$5:W$44,8,0) ->  | I39: =VLOOKUP(A39,saisie!B$5:W$44,9,0) ->  | J39: =VLOOKUP(A39,saisie!B$5:W$44,10,0) ->  | K39: =VLOOKUP(A39,saisie!B$5:W$44,11,0) ->  | M39: =VLOOKUP(A39,saisie!B$5:W$44,13,0) ->  | N39: =VLOOKUP(A39,saisie!B$5:W$44,14,0) ->  | O39: =VLOOKUP(A39,saisie!B$5:W$44,15,0) ->  | P39: =VLOOKUP(A39,saisie!B$5:W$44,16,0) ->  | R39: =VLOOKUP(A39,saisie!B$5:W$44,18,0) ->  | T39: =VLOOKUP(A39,saisie!B$5:W$44,20,0) -> 
A40: =IF(INFO!B8>35,36,"") ->  | B40: =VLOOKUP(A40,saisie!B$5:W$44,2,0) ->  | C40: =VLOOKUP(A40,saisie!B$5:W$44,3,0) ->  | D40: =VLOOKUP(A40,saisie!B$5:W$44,4,0) ->  | E40: =VLOOKUP(A40,saisie!B$5:W$44,5,0) ->  | F40: =VLOOKUP(A40,saisie!B$5:W$44,6,0) ->  | H40: =VLOOKUP(A40,saisie!B$5:W$44,8,0) ->  | I40: =VLOOKUP(A40,saisie!B$5:W$44,9,0) ->  | J40: =VLOOKUP(A40,saisie!B$5:W$44,10,0) ->  | K40: =VLOOKUP(A40,saisie!B$5:W$44,11,0) ->  | M40: =VLOOKUP(A40,saisie!B$5:W$44,13,0) ->  | N40: =VLOOKUP(A40,saisie!B$5:W$44,14,0) ->  | O40: =VLOOKUP(A40,saisie!B$5:W$44,15,0) ->  | P40: =VLOOKUP(A40,saisie!B$5:W$44,16,0) ->  | R40: =VLOOKUP(A40,saisie!B$5:W$44,18,0) ->  | T40: =VLOOKUP(A40,saisie!B$5:W$44,20,0) -> 
A41: =IF(INFO!B8>36,37,"") ->  | B41: =VLOOKUP(A41,saisie!B$5:W$44,2,0) ->  | C41: =VLOOKUP(A41,saisie!B$5:W$44,3,0) ->  | D41: =VLOOKUP(A41,saisie!B$5:W$44,4,0) ->  | E41: =VLOOKUP(A41,saisie!B$5:W$44,5,0) ->  | F41: =VLOOKUP(A41,saisie!B$5:W$44,6,0) ->  | H41: =VLOOKUP(A41,saisie!B$5:W$44,8,0) ->  | I41: =VLOOKUP(A41,saisie!B$5:W$44,9,0) ->  | J41: =VLOOKUP(A41,saisie!B$5:W$44,10,0) ->  | K41: =VLOOKUP(A41,saisie!B$5:W$44,11,0) ->  | M41: =VLOOKUP(A41,saisie!B$5:W$44,13,0) ->  | N41: =VLOOKUP(A41,saisie!B$5:W$44,14,0) ->  | O41: =VLOOKUP(A41,saisie!B$5:W$44,15,0) ->  | P41: =VLOOKUP(A41,saisie!B$5:W$44,16,0) ->  | R41: =VLOOKUP(A41,saisie!B$5:W$44,18,0) ->  | T41: =VLOOKUP(A41,saisie!B$5:W$44,20,0) -> 
A42: =IF(INFO!B8>37,38,"") ->  | B42: =VLOOKUP(A42,saisie!B$5:W$44,2,0) ->  | C42: =VLOOKUP(A42,saisie!B$5:W$44,3,0) ->  | D42: =VLOOKUP(A42,saisie!B$5:W$44,4,0) ->  | E42: =VLOOKUP(A42,saisie!B$5:W$44,5,0) ->  | F42: =VLOOKUP(A42,saisie!B$5:W$44,6,0) ->  | H42: =VLOOKUP(A42,saisie!B$5:W$44,8,0) ->  | I42: =VLOOKUP(A42,saisie!B$5:W$44,9,0) ->  | J42: =VLOOKUP(A42,saisie!B$5:W$44,10,0) ->  | K42: =VLOOKUP(A42,saisie!B$5:W$44,11,0) ->  | M42: =VLOOKUP(A42,saisie!B$5:W$44,13,0) ->  | N42: =VLOOKUP(A42,saisie!B$5:W$44,14,0) ->  | O42: =VLOOKUP(A42,saisie!B$5:W$44,15,0) ->  | P42: =VLOOKUP(A42,saisie!B$5:W$44,16,0) ->  | R42: =VLOOKUP(A42,saisie!B$5:W$44,18,0) ->  | T42: =VLOOKUP(A42,saisie!B$5:W$44,20,0) -> 
A43: =IF(INFO!B8>38,39,"") ->  | B43: =VLOOKUP(A43,saisie!B$5:W$44,2,0) ->  | C43: =VLOOKUP(A43,saisie!B$5:W$44,3,0) ->  | D43: =VLOOKUP(A43,saisie!B$5:W$44,4,0) ->  | E43: =VLOOKUP(A43,saisie!B$5:W$44,5,0) ->  | F43: =VLOOKUP(A43,saisie!B$5:W$44,6,0) ->  | H43: =VLOOKUP(A43,saisie!B$5:W$44,8,0) ->  | I43: =VLOOKUP(A43,saisie!B$5:W$44,9,0) ->  | J43: =VLOOKUP(A43,saisie!B$5:W$44,10,0) ->  | K43: =VLOOKUP(A43,saisie!B$5:W$44,11,0) ->  | M43: =VLOOKUP(A43,saisie!B$5:W$44,13,0) ->  | N43: =VLOOKUP(A43,saisie!B$5:W$44,14,0) ->  | O43: =VLOOKUP(A43,saisie!B$5:W$44,15,0) ->  | P43: =VLOOKUP(A43,saisie!B$5:W$44,16,0) ->  | R43: =VLOOKUP(A43,saisie!B$5:W$44,18,0) ->  | T43: =VLOOKUP(A43,saisie!B$5:W$44,20,0) -> 
A44: =IF(INFO!B8>39,40,"") ->  | B44: =VLOOKUP(A44,saisie!B$5:W$44,2,0) ->  | C44: =VLOOKUP(A44,saisie!B$5:W$44,3,0) ->  | D44: =VLOOKUP(A44,saisie!B$5:W$44,4,0) ->  | E44: =VLOOKUP(A44,saisie!B$5:W$44,5,0) ->  | F44: =VLOOKUP(A44,saisie!B$5:W$44,6,0) ->  | H44: =VLOOKUP(A44,saisie!B$5:W$44,8,0) ->  | I44: =VLOOKUP(A44,saisie!B$5:W$44,9,0) ->  | J44: =VLOOKUP(A44,saisie!B$5:W$44,10,0) ->  | K44: =VLOOKUP(A44,saisie!B$5:W$44,11,0) ->  | M44: =VLOOKUP(A44,saisie!B$5:W$44,13,0) ->  | N44: =VLOOKUP(A44,saisie!B$5:W$44,14,0) ->  | O44: =VLOOKUP(A44,saisie!B$5:W$44,15,0) ->  | P44: =VLOOKUP(A44,saisie!B$5:W$44,16,0) ->  | R44: =VLOOKUP(A44,saisie!B$5:W$44,18,0) ->  | T44: =VLOOKUP(A44,saisie!B$5:W$44,20,0) -> 

Sheet Clb Q
B1: =CONCATENATE(INFO!B7," ",INFO!B9) -> CARABINE POITOU-CHARENTES
B2: CLUBS QUALIFIES EN PHASE FINALE
B4: 1er Match Qualif. | C4: ='M Q'!B5 -> ROYAN Les Mouettes | E4: ='M Q'!S5 -> 441.2 | G4: =IF(INFO!B8>7,"8e MQ","") ->  | H4: =IF(INFO!B8>7,'M Q'!B12,"") ->  | J4: =IF(INFO!B8>7,'M Q'!S12,"") ->  | L4: 9e MQ | M4: =IF(INFO!B8>8,'M Q'!B13,"") ->  | O4: =IF(INFO!B8>8,'M Q'!S13,"") ->  | Q4: 16e MQ | R4: =IF(INFO!B8>15,'M Q'!B20,"") ->  | T4: =IF(INFO!B8>15,'M Q'!S20,"") -> 
B5: NOMS | C5: série 1 | D5: série 2 | E5: POINTS | G5: NOMS | H5: série 1 | I5: série 2 | J5: POINTS | L5: NOMS | M5: série 1 | N5: série 2 | O5: POINTS | Q5: NOMS | R5: série 1 | S5: série 2 | T5: POINTS
B6: ='M Q'!D5 -> CHAUVET Tiago | C6: ='M Q'!E5 -> 84.2 | D6: ='M Q'!F5 -> 82 | E6: =SUM(C6:D6) -> 166.2 | G6: =IF(INFO!B8>7,'M Q'!D12,"") ->  | H6: =IF(INFO!B8>7,'M Q'!E12,"") ->  | I6: =IF(INFO!B8>7,'M Q'!F12,"") ->  | J6: =IF(INFO!B8>7,SUM(H6:I6),"") ->  | L6: =IF(INFO!B8>8,'M Q'!D13,"") ->  | M6: =IF(INFO!B8>8,'M Q'!E13,"") ->  | N6: =IF(INFO!B8>8,'M Q'!F13,"") ->  | O6: =IF(INFO!B8>8,SUM(M6:N6),"") ->  | Q6: =IF(INFO!B8>15,'M Q'!D20,"") ->  | R6: =IF(INFO!B8>15,'M Q'!E20,"") ->  | S6: =IF(INFO!B8>15,'M Q'!F20,"") ->  | T6: =IF(INFO!B8>15,SUM(R6:S6),"") -> 
B7: ='M Q'!I5 -> CHOTARD Hugo | C7: ='M Q'!J5 -> 75.5 | D7: ='M Q'!K5 -> 64.6 | E7: =SUM(C7:D7) -> 140.1 | G7: =IF(INFO!B8>7,'M Q'!I12,"") ->  | H7: =IF(INFO!B8>7,'M Q'!J12,"") ->  | I7: =IF(INFO!B8>7,'M Q'!K12,"") ->  | J7: =IF(INFO!B8>7,SUM(H7:I7),"") ->  | L7: =IF(INFO!B8>8,'M Q'!I13,"") ->  | M7: =IF(INFO!B8>8,'M Q'!J13,"") ->  | N7: =IF(INFO!B8>8,'M Q'!K13,"") ->  | O7: =IF(INFO!B8>8,SUM(M7:N7),"") ->  | Q7: =IF(INFO!B8>15,'M Q'!I20,"") ->  | R7: =IF(INFO!B8>15,'M Q'!J20,"") ->  | S7: =IF(INFO!B8>15,'M Q'!K20,"") ->  | T7: =IF(INFO!B8>15,SUM(R7:S7),"") -> 
B8: ='M Q'!N5 -> LEYRAT Quentin | C8: ='M Q'!O5 -> 63.6 | D8: ='M Q'!P5 -> 71.3 | E8: =SUM(C8:D8) -> 134.9 | G8: =IF(INFO!B8>7,'M Q'!N12,"") ->  | H8: =IF(INFO!B8>7,'M Q'!O12,"") ->  | I8: =IF(INFO!B8>7,'M Q'!P12,"") ->  | J8: =IF(INFO!B8>7,SUM(H8:I8),"") ->  | L8: =IF(INFO!B8>8,'M Q'!N13,"") ->  | M8: =IF(INFO!B8>8,'M Q'!O13,"") ->  | N8: =IF(INFO!B8>8,'M Q'!P13,"") ->  | O8: =IF(INFO!B8>8,SUM(M8:N8),"") ->  | Q8: =IF(INFO!B8>15,'M Q'!N20,"") ->  | R8: =IF(INFO!B8>15,'M Q'!O20,"") ->  | S8: =IF(INFO!B8>15,'M Q'!P20,"") ->  | T8: =IF(INFO!B8>15,SUM(R8:S8),"") -> 
B10: 2e MQ | C10: ='M Q'!B6 -> JONZAC S.J.T | E10: ='M Q'!S6 -> 423.7 | G10: =IF(INFO!B8>6,"7e MQ","") ->  | H10: =IF(INFO!B8>6,'M Q'!B11,"") ->  | J10: =IF(INFO!B8>6,'M Q'!S11,"") ->  | L10: 10e MQ | M10: =IF(INFO!B8>9,'M Q'!B14,"") ->  | O10: =IF(INFO!B8>9,'M Q'!S14,"") ->  | Q10: 15e MQ | R10: =IF(INFO!B8>14,'M Q'!B19,"") ->  | T10: =IF(INFO!B8>14,'M Q'!S19,"") -> 
B11: NOMS | C11: série 1 | D11: série 2 | E11: POINTS | G11: NOMS | H11: série 1 | I11: série 2 | J11: POINTS | L11: NOMS | M11: série 1 | N11: série 2 | O11: POINTS | Q11: NOMS | R11: série 1 | S11: série 2 | T11: POINTS
B12: ='M Q'!D6 -> CRUCHET Luna | C12: ='M Q'!E6 -> 58.8 | D12: ='M Q'!F6 -> 58.7 | E12: =SUM(C12:D12) -> 117.5 | G12: =IF(INFO!B8>6,'M Q'!D11,"") ->  | H12: =IF(INFO!B8>6,'M Q'!E11,"") ->  | I12: =IF(INFO!B8>6,'M Q'!F11,"") ->  | J12: =IF(INFO!B8>6,SUM(H12:I12),"") ->  | L12: =IF(INFO!B8>9,'M Q'!D14,"") ->  | M12: =IF(INFO!B8>9,'M Q'!E14,"") ->  | N12: =IF(INFO!B8>9,'M Q'!F14,"") ->  | O12: =IF(INFO!B8>9,SUM(M12:N12),"") ->  | Q12: =IF(INFO!B8>14,'M Q'!D19,"") ->  | R12: =IF(INFO!B8>14,'M Q'!E19,"") ->  | S12: =IF(INFO!B8>14,'M Q'!F19,"") ->  | T12: =IF(INFO!B8>14,SUM(R12:S12),"") -> 
B13: ='M Q'!I6 -> MIGNOT Axel | C13: ='M Q'!J6 -> 94.9 | D13: ='M Q'!K6 -> 86.6 | E13: =SUM(C13:D13) -> 181.5 | G13: =IF(INFO!B8>6,'M Q'!I11,"") ->  | H13: =IF(INFO!B8>6,'M Q'!J11,"") ->  | I13: =IF(INFO!B8>6,'M Q'!K11,"") ->  | J13: =IF(INFO!B8>6,SUM(H13:I13),"") ->  | L13: =IF(INFO!B8>9,'M Q'!I14,"") ->  | M13: =IF(INFO!B8>9,'M Q'!J14,"") ->  | N13: =IF(INFO!B8>9,'M Q'!K14,"") ->  | O13: =IF(INFO!B8>9,SUM(M13:N13),"") ->  | Q13: =IF(INFO!B8>14,'M Q'!I19,"") ->  | R13: =IF(INFO!B8>14,'M Q'!J19,"") ->  | S13: =IF(INFO!B8>14,'M Q'!K19,"") ->  | T13: =IF(INFO!B8>14,SUM(R13:S13),"") -> 
B14: ='M Q'!N6 -> MILLEMONT Colline | C14: ='M Q'!O6 -> 57.4 | D14: ='M Q'!P6 -> 67.3 | E14: =SUM(C14:D14) -> 124.7 | G14: =IF(INFO!B8>6,'M Q'!N11,"") ->  | H14: =IF(INFO!B8>6,'M Q'!O11,"") ->  | I14: =IF(INFO!B8>6,'M Q'!P11,"") ->  | J14: =IF(INFO!B8>6,SUM(H14:I14),"") ->  | L14: =IF(INFO!B8>9,'M Q'!N14,"") ->  | M14: =IF(INFO!B8>9,'M Q'!O14,"") ->  | N14: =IF(INFO!B8>9,'M Q'!P14,"") ->  | O14: =IF(INFO!B8>9,SUM(M14:N14),"") ->  | Q14: =IF(INFO!B8>14,'M Q'!N19,"") ->  | R14: =IF(INFO!B8>14,'M Q'!O19,"") ->  | S14: =IF(INFO!B8>14,'M Q'!P19,"") ->  | T14: =IF(INFO!B8>14,SUM(R14:S14),"") -> 
B16: =IF(INFO!B8>2,"3e MQ","") ->  | C16: =IF(INFO!B8>2,'M Q'!B7,"") ->  | E16: =IF(INFO!B8>2,'M Q'!S7,"") ->  | G16: =IF(INFO!B8>5,"6e MQ","") ->  | H16: =IF(INFO!B8>5,'M Q'!B10,"") ->  | J16: =IF(INFO!B8>5,'M Q'!S10,"") ->  | L16: 11e MQ | M16: =IF(INFO!B8>10,'M Q'!B15,"") ->  | O16: =IF(INFO!B8>10,'M Q'!S15,"") ->  | Q16: 14e MQ | R16: =IF(INFO!B8>13,'M Q'!B18,"") ->  | T16: =IF(INFO!B8>13,'M Q'!S18,"") -> 
B17: NOMS | C17: série 1 | D17: série 2 | E17: POINTS | G17: NOMS | H17: série 1 | I17: série 2 | J17: POINTS | L17: NOMS | M17: série 1 | N17: série 2 | O17: POINTS | Q17: NOMS | R17: série 1 | S17: série 2 | T17: POINTS
B18: =IF(INFO!B8>2,'M Q'!D7,"") ->  | C18: =IF(INFO!B8>2,'M Q'!E7,"") ->  | D18: =IF(INFO!B8>2,'M Q'!F7,"") ->  | E18: =IF(INFO!B8>2,SUM(C18:D18),"") ->  | G18: =IF(INFO!B8>5,'M Q'!D10,"") ->  | H18: =IF(INFO!B8>5,'M Q'!E10,"") ->  | I18: =IF(INFO!B8>5,'M Q'!F10,"") ->  | J18: =IF(INFO!B8>5,SUM(H18:I18),"") ->  | L18: =IF(INFO!B8>10,'M Q'!D15,"") ->  | M18: =IF(INFO!B8>10,'M Q'!E15,"") ->  | N18: =IF(INFO!B8>10,'M Q'!F15,"") ->  | O18: =IF(INFO!B8>10,SUM(M18:N18),"") ->  | Q18: =IF(INFO!B8>13,'M Q'!D18,"") ->  | R18: =IF(INFO!B8>13,'M Q'!E18,"") ->  | S18: =IF(INFO!B8>13,'M Q'!F18,"") ->  | T18: =IF(INFO!B8>13,SUM(R18:S18),"") -> 
B19: =IF(INFO!B8>2,'M Q'!I7,"") ->  | C19: =IF(INFO!B8>2,'M Q'!J7,"") ->  | D19: =IF(INFO!B8>2,'M Q'!K7,"") ->  | E19: =IF(INFO!B8>2,SUM(C19:D19),"") ->  | G19: =IF(INFO!B8>5,'M Q'!I10,"") ->  | H19: =IF(INFO!B8>5,'M Q'!J10,"") ->  | I19: =IF(INFO!B8>5,'M Q'!K10,"") ->  | J19: =IF(INFO!B8>5,SUM(H19:I19),"") ->  | L19: =IF(INFO!B8>10,'M Q'!I15,"") ->  | M19: =IF(INFO!B8>10,'M Q'!J15,"") ->  | N19: =IF(INFO!B8>10,'M Q'!K15,"") ->  | O19: =IF(INFO!B8>10,SUM(M19:N19),"") ->  | Q19: =IF(INFO!B8>13,'M Q'!I18,"") ->  | R19: =IF(INFO!B8>13,'M Q'!J18,"") ->  | S19: =IF(INFO!B8>13,'M Q'!K18,"") ->  | T19: =IF(INFO!B8>13,SUM(R19:S19),"") -> 
B20: =IF(INFO!B8>2,'M Q'!N7,"") ->  | C20: =IF(INFO!B8>2,'M Q'!O7,"") ->  | D20: =IF(INFO!B8>2,'M Q'!P7,"") ->  | E20: =IF(INFO!B8>2,SUM(C20:D20),"") ->  | G20: =IF(INFO!B8>5,'M Q'!N10,"") ->  | H20: =IF(INFO!B8>5,'M Q'!O10,"") ->  | I20: =IF(INFO!B8>5,'M Q'!P10,"") ->  | J20: =IF(INFO!B8>5,SUM(H20:I20),"") ->  | L20: =IF(INFO!B8>10,'M Q'!N15,"") ->  | M20: =IF(INFO!B8>10,'M Q'!O15,"") ->  | N20: =IF(INFO!B8>10,'M Q'!P15,"") ->  | O20: =IF(INFO!B8>10,SUM(M20:N20),"") ->  | Q20: =IF(INFO!B8>13,'M Q'!N18,"") ->  | R20: =IF(INFO!B8>13,'M Q'!O18,"") ->  | S20: =IF(INFO!B8>13,'M Q'!P18,"") ->  | T20: =IF(INFO!B8>13,SUM(R20:S20),"") -> 
B22: =IF(INFO!B8>3,"4e MQ","") ->  | C22: =IF(INFO!B8>3,'M Q'!B8,"") ->  | E22: =IF(INFO!B8>3,'M Q'!S8,"") ->  | G22: =IF(INFO!B8>4,"5e MQ","") ->  | H22: =IF(INFO!B8>4,'M Q'!B9,"") ->  | J22: =IF(INFO!B8>4,'M Q'!S9,"") ->  | L22: 12e MQ | M22: =IF(INFO!B8>11,'M Q'!B16,"") ->  | O22: =IF(INFO!B8>11,'M Q'!S16,"") ->  | Q22: 13e MQ | R22: =IF(INFO!B8>12,'M Q'!B17,"") ->  | T22: =IF(INFO!B8>12,'M Q'!S17,"") -> 
B23: NOMS | C23: série 1 | D23: série 2 | E23: POINTS | G23: NOMS | H23: série 1 | I23: série 2 | J23: POINTS | L23: NOMS | M23: série 1 | N23: série 2 | O23: POINTS | Q23: NOMS | R23: série 1 | S23: série 2 | T23: POINTS
B24: =IF(INFO!B8>3,'M Q'!D8,"") ->  | C24: =IF(INFO!B8>3,'M Q'!E8,"") ->  | D24: =IF(INFO!B8>3,'M Q'!F8,"") ->  | E24: =IF(INFO!B8>3,SUM(C24:D24),"") ->  | G24: =IF(INFO!B8>4,'M Q'!D9,"") ->  | H24: =IF(INFO!B8>4,'M Q'!E9,"") ->  | I24: =IF(INFO!B8>4,'M Q'!F9,"") ->  | J24: =IF(INFO!B8>4,SUM(H24:I24),"") ->  | L24: =IF(INFO!B8>11,'M Q'!D16,"") ->  | M24: =IF(INFO!B8>11,'M Q'!E16,"") ->  | N24: =IF(INFO!B8>11,'M Q'!F16,"") ->  | O24: =IF(INFO!B8>11,SUM(M24:N24),"") ->  | Q24: =IF(INFO!B8>12,'M Q'!D17,"") ->  | R24: =IF(INFO!B8>12,'M Q'!E17,"") ->  | S24: =IF(INFO!B8>12,'M Q'!F17,"") ->  | T24: =IF(INFO!B8>12,SUM(R24:S24),"") -> 
B25: =IF(INFO!B8>3,'M Q'!I8,"") ->  | C25: =IF(INFO!B8>3,'M Q'!J8,"") ->  | D25: =IF(INFO!B8>3,'M Q'!K8,"") ->  | E25: =IF(INFO!B8>3,SUM(C25:D25),"") ->  | G25: =IF(INFO!B8>4,'M Q'!I9,"") ->  | H25: =IF(INFO!B8>4,'M Q'!J9,"") ->  | I25: =IF(INFO!B8>4,'M Q'!K9,"") ->  | J25: =IF(INFO!B8>4,SUM(H25:I25),"") ->  | L25: =IF(INFO!B8>11,'M Q'!I16,"") ->  | M25: =IF(INFO!B8>11,'M Q'!J16,"") ->  | N25: =IF(INFO!B8>11,'M Q'!K16,"") ->  | O25: =IF(INFO!B8>11,SUM(M25:N25),"") ->  | Q25: =IF(INFO!B8>12,'M Q'!I17,"") ->  | R25: =IF(INFO!B8>12,'M Q'!J17,"") ->  | S25: =IF(INFO!B8>12,'M Q'!K17,"") ->  | T25: =IF(INFO!B8>12,SUM(R25:S25),"") -> 
B26: =IF(INFO!B8>3,'M Q'!N8,"") ->  | C26: =IF(INFO!B8>3,'M Q'!O8,"") ->  | D26: =IF(INFO!B8>3,'M Q'!P8,"") ->  | E26: =IF(INFO!B8>3,SUM(C26:D26),"") ->  | G26: =IF(INFO!B8>4,'M Q'!N9,"") ->  | H26: =IF(INFO!B8>4,'M Q'!O9,"") ->  | I26: =IF(INFO!B8>4,'M Q'!P9,"") ->  | J26: =IF(INFO!B8>4,SUM(H26:I26),"") ->  | L26: =IF(INFO!B8>11,'M Q'!N16,"") ->  | M26: =IF(INFO!B8>11,'M Q'!O16,"") ->  | N26: =IF(INFO!B8>11,'M Q'!P16,"") ->  | O26: =IF(INFO!B8>11,SUM(M26:N26),"") ->  | Q26: =IF(INFO!B8>12,'M Q'!N17,"") ->  | R26: =IF(INFO!B8>12,'M Q'!O17,"") ->  | S26: =IF(INFO!B8>12,'M Q'!P17,"") ->  | T26: =IF(INFO!B8>12,SUM(R26:S26),"") -> 

Sheet P.F.
A1: =INFO!B7 -> CARABINE
A3: 1/8 FINALES
B4: ='Clb Q'!C4 -> ROYAN Les Mouettes | E4: POSTE | G4: ='Clb Q'!R4 ->  | L4: ='Clb Q'!H22 ->  | O4: POSTE | Q4: ='Clb Q'!M22 -> 
B5: ='Clb Q'!B6 -> CHAUVET Tiago | E5: 3 | F5: 4 | G5: ='Clb Q'!Q6 ->  | L5: ='Clb Q'!G24 ->  | O5: 13 | P5: 14 | Q5: ='Clb Q'!L24 -> 
B6: ='Clb Q'!B7 -> CHOTARD Hugo | E6: 5 | F6: 6 | G6: ='Clb Q'!Q7 ->  | L6: ='Clb Q'!G25 ->  | O6: 15 | P6: 16 | Q6: ='Clb Q'!L25 -> 
B7: ='Clb Q'!B8 -> LEYRAT Quentin | E7: 7 | F7: 8 | G7: ='Clb Q'!Q8 ->  | L7: ='Clb Q'!G26 ->  | O7: 17 | P7: 18 | Q7: ='Clb Q'!L26 -> 
A8: =IF(D8="","",IF(D8>1,1,0)) ->  | B8: =IF(D8="","",SUM(A8:A12)) ->  | H8: =IF(G8="","",SUM(J8:J12)) ->  | J8: =IF(G8="","",IF(G8>1,1,0)) ->  | K8: =IF(N8="","",IF(N8>1,1,0)) ->  | L8: =IF(N8="","",SUM(K8:K12)) ->  | R8: =IF(Q8="","",SUM(T8:T12)) ->  | T8: =IF(Q8="","",IF(Q8>1,1,0)) -> 
A9: =IF(D9="","",IF(D9>1,1,0)) ->  | J9: =IF(G9="","",IF(G9>1,1,0)) ->  | K9: =IF(N9="","",IF(N9>1,1,0)) ->  | T9: =IF(Q9="","",IF(Q9>1,1,0)) -> 
A10: =IF(D10="","",IF(D10>1,1,0)) ->  | J10: =IF(G10="","",IF(G10>1,1,0)) ->  | K10: =IF(N10="","",IF(N10>1,1,0)) ->  | T10: =IF(Q10="","",IF(Q10>1,1,0)) -> 
A11: =IF(D11="","",IF(D11>1,1,0)) ->  | J11: =IF(G11="","",IF(G11>1,1,0)) ->  | K11: =IF(N11="","",IF(N11>1,1,0)) ->  | T11: =IF(Q11="","",IF(Q11>1,1,0)) -> 
A12: =IF(D12="","",IF(D12>1,1,0)) ->  | J12: =IF(G12="","",IF(G12>1,1,0)) ->  | K12: =IF(N12="","",IF(N12>1,1,0)) ->  | T12: =IF(Q12="","",IF(Q12>1,1,0)) -> 
B14: ='Clb Q'!M4 ->  | E14: POSTE | G14: ='Clb Q'!H4 ->  | L14: ='Clb Q'!R22 ->  | O14: POSTE | Q14: ='Clb Q'!C22 -> 
B15: ='Clb Q'!L6 ->  | E15: 3 | F15: 4 | G15: ='Clb Q'!G6 ->  | L15: ='Clb Q'!Q24 ->  | O15: 13 | P15: 14 | Q15: ='Clb Q'!B24 -> 
B16: ='Clb Q'!L7 ->  | E16: 5 | F16: 6 | G16: ='Clb Q'!G7 ->  | L16: ='Clb Q'!Q25 ->  | O16: 15 | P16: 16 | Q16: ='Clb Q'!B25 -> 
B17: ='Clb Q'!L8 ->  | E17: 7 | F17: 8 | G17: ='Clb Q'!G8 ->  | L17: ='Clb Q'!Q26 ->  | O17: 17 | P17: 18 | Q17: ='Clb Q'!B26 -> 
A18: =IF(D18="","",IF(D18>1,1,0)) ->  | B18: =IF(D18="","",SUM(A18:A22)) ->  | H18: =IF(G18="","",SUM(J18:J22)) ->  | J18: =IF(G18="","",IF(G18>1,1,0)) ->  | K18: =IF(N18="","",IF(N18>1,1,0)) ->  | L18: =IF(N18="","",SUM(K18:K22)) ->  | R18: =IF(Q18="","",SUM(T18:T22)) ->  | T18: =IF(Q18="","",IF(Q18>1,1,0)) -> 
A19: =IF(D19="","",IF(D19>1,1,0)) ->  | J19: =IF(G19="","",IF(G19>1,1,0)) ->  | K19: =IF(N19="","",IF(N19>1,1,0)) ->  | T19: =IF(Q19="","",IF(Q19>1,1,0)) -> 
A20: =IF(D20="","",IF(D20>1,1,0)) ->  | J20: =IF(G20="","",IF(G20>1,1,0)) ->  | K20: =IF(N20="","",IF(N20>1,1,0)) ->  | T20: =IF(Q20="","",IF(Q20>1,1,0)) -> 
A21: =IF(D21="","",IF(D21>1,1,0)) ->  | J21: =IF(G21="","",IF(G21>1,1,0)) ->  | K21: =IF(N21="","",IF(N21>1,1,0)) ->  | T21: =IF(Q21="","",IF(Q21>1,1,0)) -> 
A22: =IF(D22="","",IF(D22>1,1,0)) ->  | J22: =IF(G22="","",IF(G22>1,1,0)) ->  | K22: =IF(N22="","",IF(N22>1,1,0)) ->  | T22: =IF(Q22="","",IF(Q22>1,1,0)) -> 
A24: 1/8 FINALES (Suite)
B25: ='Clb Q'!C16 ->  | E25: POSTE | G25: ='Clb Q'!R16 ->  | L25: ='Clb Q'!H10 ->  | O25: POSTE | Q25: ='Clb Q'!M10 -> 
B26: ='Clb Q'!B18 ->  | E26: 3 | F26: 4 | G26: ='Clb Q'!Q18 ->  | L26: ='Clb Q'!G12 ->  | O26: 13 | P26: 14 | Q26: ='Clb Q'!L12 -> 
B27: ='Clb Q'!B19 ->  | E27: 5 | F27: 6 | G27: ='Clb Q'!Q19 ->  | L27: ='Clb Q'!G13 ->  | O27: 15 | P27: 16 | Q27: ='Clb Q'!L13 -> 
B28: ='Clb Q'!B20 ->  | E28: 7 | F28: 8 | G28: ='Clb Q'!Q20 ->  | L28: ='Clb Q'!G14 ->  | O28: 17 | P28: 18 | Q28: ='Clb Q'!L14 -> 
A29: =IF(D29="","",IF(D29>1,1,0)) ->  | B29: =IF(D29="","",SUM(A29:A33)) ->  | H29: =IF(G29="","",SUM(J29:J33)) ->  | J29: =IF(G29="","",IF(G29>1,1,0)) ->  | K29: =IF(N29="","",IF(N29>1,1,0)) ->  | L29: =IF(N29="","",SUM(K29:K33)) ->  | R29: =IF(Q29="","",SUM(T29:T33)) ->  | T29: =IF(Q29="","",IF(Q29>1,1,0)) -> 
A30: =IF(D30="","",IF(D30>1,1,0)) ->  | J30: =IF(G30="","",IF(G30>1,1,0)) ->  | K30: =IF(N30="","",IF(N30>1,1,0)) ->  | T30: =IF(Q30="","",IF(Q30>1,1,0)) -> 
A31: =IF(D31="","",IF(D31>1,1,0)) ->  | J31: =IF(G31="","",IF(G31>1,1,0)) ->  | K31: =IF(N31="","",IF(N31>1,1,0)) ->  | T31: =IF(Q31="","",IF(Q31>1,1,0)) -> 
A32: =IF(D32="","",IF(D32>1,1,0)) ->  | J32: =IF(G32="","",IF(G32>1,1,0)) ->  | K32: =IF(N32="","",IF(N32>1,1,0)) ->  | T32: =IF(Q32="","",IF(Q32>1,1,0)) -> 
A33: =IF(D33="","",IF(D33>1,1,0)) ->  | J33: =IF(G33="","",IF(G33>1,1,0)) ->  | K33: =IF(N33="","",IF(N33>1,1,0)) ->  | T33: =IF(Q33="","",IF(Q33>1,1,0)) -> 
B36: ='Clb Q'!M16 ->  | E36: POSTE | G36: ='Clb Q'!H16 ->  | L36: ='Clb Q'!R10 ->  | O36: POSTE | Q36: ='Clb Q'!C10 -> JONZAC S.J.T
B37: ='Clb Q'!L18 ->  | E37: 3 | F37: 4 | G37: ='Clb Q'!G18 ->  | L37: ='Clb Q'!Q12 ->  | O37: 13 | P37: 14 | Q37: ='Clb Q'!B12 -> CRUCHET Luna
B38: ='Clb Q'!L19 ->  | E38: 5 | F38: 6 | G38: ='Clb Q'!G19 ->  | L38: ='Clb Q'!Q13 ->  | O38: 15 | P38: 16 | Q38: ='Clb Q'!B13 -> MIGNOT Axel
B39: ='Clb Q'!L20 ->  | E39: 7 | F39: 8 | G39: ='Clb Q'!G20 ->  | L39: ='Clb Q'!Q14 ->  | O39: 17 | P39: 18 | Q39: ='Clb Q'!B14 -> MILLEMONT Colline
A40: =IF(D40="","",IF(D40>1,1,0)) ->  | B40: =IF(D40="","",SUM(A40:A44)) ->  | H40: =IF(G40="","",SUM(J40:J44)) ->  | J40: =IF(G40="","",IF(G40>1,1,0)) ->  | K40: =IF(N40="","",IF(N40>1,1,0)) ->  | L40: =IF(N40="","",SUM(K40:K44)) ->  | R40: =IF(Q40="","",SUM(T40:T44)) ->  | T40: =IF(Q40="","",IF(Q40>1,1,0)) -> 
A41: =IF(D41="","",IF(D41>1,1,0)) ->  | J41: =IF(G41="","",IF(G41>1,1,0)) ->  | K41: =IF(N41="","",IF(N41>1,1,0)) ->  | T41: =IF(Q41="","",IF(Q41>1,1,0)) -> 
A42: =IF(D42="","",IF(D42>1,1,0)) ->  | J42: =IF(G42="","",IF(G42>1,1,0)) ->  | K42: =IF(N42="","",IF(N42>1,1,0)) ->  | T42: =IF(Q42="","",IF(Q42>1,1,0)) -> 
A43: =IF(D43="","",IF(D43>1,1,0)) ->  | J43: =IF(G43="","",IF(G43>1,1,0)) ->  | K43: =IF(N43="","",IF(N43>1,1,0)) ->  | T43: =IF(Q43="","",IF(Q43>1,1,0)) -> 
A44: =IF(D44="","",IF(D44>1,1,0)) ->  | J44: =IF(G44="","",IF(G44>1,1,0)) ->  | K44: =IF(N44="","",IF(N44>1,1,0)) ->  | T44: =IF(Q44="","",IF(Q44>1,1,0)) -> 
A45: 1/4 FINALES
B46: =IF(G4="",B4,IF(B8="","",IF(B8>2,B4,IF(H8>2,G4,"")))) -> ROYAN Les Mouettes | E46: POSTE | G46: =IF(B14="",G14,IF(B18="","",IF(B18>2,B14,IF(H18>2,G14,"")))) ->  | L46: =IF(G25="",B25,IF(B29="","",IF(B29>2,B25,IF(H29>2,G25,"")))) ->  | O46: POSTE | Q46: =IF(B36="",G36,IF(B40="","",IF(B40>2,B36,IF(H40>2,G36,"")))) -> 
B47: =IF(G4="",B5,IF(B8="","",IF(B8>2,B5,IF(H8>2,G5,"")))) -> CHAUVET Tiago | E47: 3 | F47: 4 | G47: =IF(B14="",G15,IF(B18="","",IF(B18>2,B15,IF(H18>2,G15,"")))) ->  | L47: =IF(G25="",B26,IF(B29="","",IF(B29>2,B26,IF(H29>2,G26,"")))) ->  | O47: 3 | P47: 4 | Q47: =IF(B36="",G37,IF(B40="","",IF(B40>2,B37,IF(H40>2,G37,"")))) -> 
B48: =IF(G4="",B6,IF(B8="","",IF(B8>2,B6,IF(H8>2,G6,"")))) -> CHOTARD Hugo | E48: 5 | F48: 6 | G48: =IF(B14="",G16,IF(B18="","",IF(B18>2,B16,IF(H18>2,G16,"")))) ->  | L48: =IF(G25="",B27,IF(B29="","",IF(B29>2,B27,IF(H29>2,G27,"")))) ->  | O48: 5 | P48: 6 | Q48: =IF(B36="",G38,IF(B40="","",IF(B40>2,B38,IF(H40>2,G38,"")))) -> 
B49: =IF(G4="",B7,IF(B8="","",IF(B8>2,B7,IF(H8>2,G7,"")))) -> LEYRAT Quentin | E49: 7 | F49: 8 | G49: =IF(B14="",G17,IF(B18="","",IF(B18>2,B17,IF(H18>2,G17,"")))) ->  | L49: =IF(G25="",B28,IF(B29="","",IF(B29>2,B28,IF(H29>2,G28,"")))) ->  | O49: 7 | P49: 8 | Q49: =IF(B36="",G39,IF(B40="","",IF(B40>2,B39,IF(H40>2,G39,"")))) -> 
A50: =IF(D50="","",IF(D50>1,1,0)) ->  | B50: =IF(D50="","",SUM(A50:A54)) ->  | H50: =IF(G50="","",SUM(J50:J54)) ->  | J50: =IF(G50="","",IF(G50>1,1,0)) ->  | K50: =IF(N50="","",IF(N50>1,1,0)) ->  | L50: =IF(N50="","",SUM(K50:K54)) ->  | R50: =IF(Q50="","",SUM(T50:T54)) ->  | T50: =IF(Q50="","",IF(Q50>1,1,0)) -> 
A51: =IF(D51="","",IF(D51>1,1,0)) ->  | J51: =IF(G51="","",IF(G51>1,1,0)) ->  | K51: =IF(N51="","",IF(N51>1,1,0)) ->  | T51: =IF(Q51="","",IF(Q51>1,1,0)) -> 
A52: =IF(D52="","",IF(D52>1,1,0)) ->  | J52: =IF(G52="","",IF(G52>1,1,0)) ->  | K52: =IF(N52="","",IF(N52>1,1,0)) ->  | T52: =IF(Q52="","",IF(Q52>1,1,0)) -> 
A53: =IF(D53="","",IF(D53>1,1,0)) ->  | J53: =IF(G53="","",IF(G53>1,1,0)) ->  | K53: =IF(N53="","",IF(N53>1,1,0)) ->  | T53: =IF(Q53="","",IF(Q53>1,1,0)) -> 
A54: =IF(D54="","",IF(D54>1,1,0)) ->  | J54: =IF(G54="","",IF(G54>1,1,0)) ->  | K54: =IF(N54="","",IF(N54>1,1,0)) ->  | T54: =IF(Q54="","",IF(Q54>1,1,0)) -> 
B56: =IF(Q4="",L4,IF(L8="","",IF(L8>2,L4,IF(R8>2,Q4,"")))) ->  | E56: POSTE | G56: =IF(L14="",Q14,IF(L18="","",IF(L18>2,L14,IF(R18>2,Q14,"")))) ->  | L56: =IF(Q25="",L25,IF(L29="","",IF(L29>2,L25,IF(R29>2,Q25,"")))) ->  | O56: POSTE | Q56: =IF(L36="",Q36,IF(L40="","",IF(L40>2,L36,IF(R40>2,Q36,"")))) -> JONZAC S.J.T
B57: =IF(Q4="",L5,IF(L8="","",IF(L8>2,L5,IF(R8>2,Q5,"")))) ->  | E57: 13 | F57: 14 | G57: =IF(L14="",Q15,IF(L18="","",IF(L18>2,L15,IF(R18>2,Q15,"")))) ->  | L57: =IF(Q25="",L26,IF(L29="","",IF(L29>2,L26,IF(R29>2,Q26,"")))) ->  | O57: 13 | P57: 14 | Q57: =IF(L36="",Q37,IF(L40="","",IF(L40>2,L37,IF(R40>2,Q37,"")))) -> CRUCHET Luna
B58: =IF(Q4="",L6,IF(L8="","",IF(L8>2,L6,IF(R8>2,Q6,"")))) ->  | E58: 15 | F58: 16 | G58: =IF(L14="",Q16,IF(L18="","",IF(L18>2,L16,IF(R18>2,Q16,"")))) ->  | L58: =IF(Q25="",L27,IF(L29="","",IF(L29>2,L27,IF(R29>2,Q27,"")))) ->  | O58: 15 | P58: 16 | Q58: =IF(L36="",Q38,IF(L40="","",IF(L40>2,L38,IF(R40>2,Q38,"")))) -> MIGNOT Axel
B59: =IF(Q4="",L7,IF(L8="","",IF(L8>2,L7,IF(R8>2,Q7,"")))) ->  | E59: 17 | F59: 18 | G59: =IF(L14="",Q17,IF(L18="","",IF(L18>2,L17,IF(R18>2,Q17,"")))) ->  | L59: =IF(Q25="",L28,IF(L29="","",IF(L29>2,L28,IF(R29>2,Q28,"")))) ->  | O59: 17 | P59: 18 | Q59: =IF(L36="",Q39,IF(L40="","",IF(L40>2,L39,IF(R40>2,Q39,"")))) -> MILLEMONT Colline
A60: =IF(D60="","",IF(D60>1,1,0)) ->  | B60: =IF(D60="","",SUM(A60:A64)) ->  | H60: =IF(G60="","",SUM(J60:J64)) ->  | J60: =IF(G60="","",IF(G60>1,1,0)) ->  | K60: =IF(N60="","",IF(N60>1,1,0)) -> 0 | L60: =IF(N60="","",SUM(K60:K64)) -> 0 | N60: 0 | R60: =IF(Q60="","",SUM(T60:T64)) ->  | T60: =IF(Q60="","",IF(Q60>1,1,0)) -> 
A61: =IF(D61="","",IF(D61>1,1,0)) ->  | J61: =IF(G61="","",IF(G61>1,1,0)) ->  | K61: =IF(N61="","",IF(N61>1,1,0)) -> 0 | N61: 0 | T61: =IF(Q61="","",IF(Q61>1,1,0)) -> 
A62: =IF(D62="","",IF(D62>1,1,0)) ->  | J62: =IF(G62="","",IF(G62>1,1,0)) ->  | K62: =IF(N62="","",IF(N62>1,1,0)) -> 0 | N62: 0 | T62: =IF(Q62="","",IF(Q62>1,1,0)) -> 
A63: =IF(D63="","",IF(D63>1,1,0)) ->  | J63: =IF(G63="","",IF(G63>1,1,0)) ->  | K63: =IF(N63="","",IF(N63>1,1,0)) ->  | T63: =IF(Q63="","",IF(Q63>1,1,0)) -> 
A64: =IF(D64="","",IF(D64>1,1,0)) ->  | J64: =IF(G64="","",IF(G64>1,1,0)) ->  | K64: =IF(N64="","",IF(N64>1,1,0)) ->  | T64: =IF(Q64="","",IF(Q64>1,1,0)) -> 
A66: DEMI-FINALES
B67: =IF(G46="",B46,IF(B50="","",IF(H50="","",IF(B50>2,B46,IF(H50>2,G46,""))))) -> ROYAN Les Mouettes | E67: POSTE | G67: =IF(B56="",G56,IF(B60="","",IF(H60="","",IF(B60>2,B56,IF(H60>2,G56,""))))) ->  | L67: =IF(Q46="",L46,IF(L50="","",IF(R50="","",IF(L50>2,L46,IF(R50>2,Q46,""))))) ->  | O67: POSTE | Q67: =IF(L56="",Q56,IF(L60="","",IF(R60="","",IF(L60>2,L56,IF(R60>2,Q56,""))))) -> JONZAC S.J.T
B68: =IF(G46="",B47,IF(B50="","",IF(H50="","",IF(B50>2,B47,IF(H50>2,G47,""))))) -> CHAUVET Tiago | E68: 6 | F68: 7 | G68: =IF(B56="",G57,IF(B60="","",IF(H60="","",IF(B60>2,B57,IF(H60>2,G57,""))))) ->  | L68: =IF(Q46="",L47,IF(L50="","",IF(R50="","",IF(L50>2,L47,IF(R50>2,Q47,""))))) ->  | O68: 14 | P68: 15 | Q68: =IF(L56="",Q57,IF(L60="","",IF(R60="","",IF(L60>2,L57,IF(R60>2,Q57,""))))) -> CRUCHET Luna
B69: =IF(G46="",B48,IF(B50="","",IF(H50="","",IF(B50>2,B48,IF(H50>2,G48,""))))) -> CHOTARD Hugo | E69: 8 | F69: 9 | G69: =IF(B56="",G58,IF(B60="","",IF(H60="","",IF(B60>2,B58,IF(H60>2,G58,""))))) ->  | L69: =IF(Q46="",L48,IF(L50="","",IF(R50="","",IF(L50>2,L48,IF(R50>2,Q48,""))))) ->  | O69: 16 | P69: 17 | Q69: =IF(L56="",Q58,IF(L60="","",IF(R60="","",IF(L60>2,L58,IF(R60>2,Q58,""))))) -> MIGNOT Axel
B70: =IF(G46="",B49,IF(B50="","",IF(H50="","",IF(B50>2,B49,IF(H50>2,G49,""))))) -> LEYRAT Quentin | E70: 10 | F70: 11 | G70: =IF(B56="",G59,IF(B60="","",IF(H60="","",IF(B60>2,B59,IF(H60>2,G59,""))))) ->  | L70: =IF(Q46="",L49,IF(L50="","",IF(R50="","",IF(L50>2,L49,IF(R50>2,Q49,""))))) ->  | O70: 18 | P70: 19 | Q70: =IF(L56="",Q59,IF(L60="","",IF(R60="","",IF(L60>2,L59,IF(R60>2,Q59,""))))) -> MILLEMONT Colline
A71: =IF(D71="","",IF(D71>1,1,0)) ->  | B71: =IF(D71="","",SUM(A71:A77)) ->  | H71: =IF(G71="","",SUM(J71:J77)) ->  | J71: =IF(G71="","",IF(G71>1,1,0)) ->  | K71: =IF(N71="","",IF(N71>1,1,0)) ->  | L71: =IF(N71="","",SUM(K71:K77)) ->  | R71: =IF(Q71="","",SUM(T71:T77)) ->  | T71: =IF(Q71="","",IF(Q71>1,1,0)) -> 
A72: =IF(D72="","",IF(D72>1,1,0)) ->  | J72: =IF(G72="","",IF(G72>1,1,0)) ->  | K72: =IF(N72="","",IF(N72>1,1,0)) ->  | T72: =IF(Q72="","",IF(Q72>1,1,0)) -> 
G79: PETITE FINALE
G80: =IF(G67="","",IF(B71="","",IF(H71="","",IF(B71>3,G67,IF(H71>3,B67,""))))) ->  | J80: POSTE | L80: =IF(L67="","",IF(L71="","",IF(R71="","",IF(L71>3,Q67,IF(R71>3,L67,""))))) -> 
G81: =IF(G67="","",IF(B71="","",IF(H71="","",IF(B71>3,G68,IF(H71>3,B68,""))))) ->  | J81: 6 | K81: 7 | L81: =IF(L67="","",IF(L71="","",IF(R71="","",IF(L71>3,Q68,IF(R71>3,L68,""))))) -> 
G82: =IF(G67="","",IF(B71="","",IF(H71="","",IF(B71>3,G69,IF(H71>3,B69,""))))) ->  | J82: 8 | K82: 9 | L82: =IF(L67="","",IF(L71="","",IF(R71="","",IF(L71>3,Q69,IF(R71>3,L69,""))))) -> 
G83: =IF(G67="","",IF(B71="","",IF(H71="","",IF(B71>3,G70,IF(H71>3,B70,""))))) ->  | J83: 10 | K83: 11 | L83: =IF(L67="","",IF(L71="","",IF(R71="","",IF(L71>3,Q70,IF(R71>3,L70,""))))) -> 
F84: =IF(I84="","",IF(I84>1,1,0)) ->  | G84: =IF(I84="","",SUM(F84:F90)) ->  | M84: =IF(L84="","",SUM(O84:O90)) ->  | O84: =IF(L84="","",IF(L84>1,1,0)) -> 
F85: =IF(I85="","",IF(I85>1,1,0)) ->  | O85: =IF(L85="","",IF(L85>1,1,0)) -> 
G92: FINALE
G94: =IF(G67="",B67,IF(B71="","",IF(H71="","",IF(B71>3,B67,IF(H71>3,G67,""))))) -> ROYAN Les Mouettes | J94: POSTE | L94: =IF(L67="",Q67,IF(L71="","",IF(R71="","",IF(L71>3,L67,IF(R71>3,Q67,""))))) -> JONZAC S.J.T
G95: =IF(G67="",B68,IF(B71="","",IF(H71="","",IF(B71>3,B68,IF(H71>3,G68,""))))) -> CHAUVET Tiago | J95: 13 | K95: 14 | L95: =IF(L67="",Q68,IF(L71="","",IF(R71="","",IF(L71>3,L68,IF(R71>3,Q68,""))))) -> CRUCHET Luna
G96: =IF(G67="",B69,IF(B71="","",IF(H71="","",IF(B71>3,B69,IF(H71>3,G69,""))))) -> CHOTARD Hugo | J96: 15 | K96: 16 | L96: =IF(L67="",Q69,IF(L71="","",IF(R71="","",IF(L71>3,L69,IF(R71>3,Q69,""))))) -> MIGNOT Axel
G97: =IF(G67="",B70,IF(B71="","",IF(H71="","",IF(B71>3,B70,IF(H71>3,G70,""))))) -> LEYRAT Quentin | J97: 17 | K97: 18 | L97: =IF(L67="",Q70,IF(L71="","",IF(R71="","",IF(L71>3,L70,IF(R71>3,Q70,""))))) -> MILLEMONT Colline
F98: =IF(I98="","",IF(I98>1,1,0)) -> 0 | G98: =IF(I98="","",SUM(F98:F104)) -> 4 | I98: 1 | L98: 2 | M98: =IF(L98="","",SUM(O98:O104)) -> 3 | O98: =IF(L98="","",IF(L98>1,1,0)) -> 1
F99: =IF(I99="","",IF(I99>1,1,0)) -> 1 | I99: 2 | L99: 1 | O99: =IF(L99="","",IF(L99>1,1,0)) -> 0
F100: 1 | I100: 2 | L100: 1 | O100: 0
F101: 1 | I101: 2 | L101: 1 | O101: 0
F102: 0 | I102: 1 | L102: 2 | O102: 1
F103: 1 | I103: 3 | L103: 2 | O103: 1

Sheet PALMARES
A1: =CONCATENATE("PALMARES ",INFO!C6," ","CHAMPIONNAT DE FRANCE DES CLUBS ECOLE DE TIR") -> PALMARES CHAMPIONNAT DE FRANCE DES CLUBS ECOLE DE TIR
A4: =CONCATENATE(INFO!B7," - ",INFO!B9) -> CARABINE - POITOU-CHARENTES
A6: PLACE | B6: CLUBS | C6: LIGUE | D6: n° CLUB | E6: M Q | F6: Bar.
A7: 1 | B7: =IF(A7="","",IF(P.F.!G98>3,P.F.!G94,IF(P.F.!M98>3,P.F.!L94,""))) -> ROYAN Les Mouettes | D7: =IF(A7="","",VLOOKUP(B7,'M Q'!B$5:T$20,2,0)) -> 1717153 | E7: =IF(A7="","",VLOOKUP(B7,'M Q'!B$5:T$20,18,0)) -> 441.2 | F7: =IF(A7="","",VLOOKUP(B7,'M Q'!B$5:T$20,19,0)) -> 0 | G7: FINALE
A8: =IF(INFO!B8>1,2,"") -> 2 | B8: =IF(A8="","",IF(P.F.!G98>3,P.F.!L94,IF(P.F.!M98>3,P.F.!G94,""))) -> JONZAC S.J.T | D8: =IF(A8="","",VLOOKUP(B8,'M Q'!B$5:T$20,2,0)) -> 1717165 | E8: =IF(A8="","",VLOOKUP(B8,'M Q'!B$5:T$20,18,0)) -> 423.7 | F8: =IF(A8="","",VLOOKUP(B8,'M Q'!B$5:T$20,19,0)) -> 0
A9: =IF(INFO!B8>2,3,"") ->  | B9: =IF(A9="","",IF(INFO!B8=3,P.F.!L80,IF(P.F.!G84>3,P.F.!G80,IF(P.F.!M84>3,P.F.!L80,"")))) ->  | D9: =IF(A9="","",VLOOKUP(B9,'M Q'!B$5:T$20,2,0)) ->  | E9: =IF(A9="","",VLOOKUP(B9,'M Q'!B$5:T$20,18,0)) ->  | F9: =IF(A9="","",VLOOKUP(B9,'M Q'!B$5:T$20,19,0)) ->  | G9: PETITE FINALE
A10: =IF(INFO!B8>3,4,"") ->  | B10: =IF(A10="","",IF(P.F.!G84>3,P.F.!L80,IF(P.F.!M84>3,P.F.!G80,""))) ->  | D10: =IF(A10="","",VLOOKUP(B10,'M Q'!B$5:T$20,2,0)) ->  | E10: =IF(A10="","",VLOOKUP(B10,'M Q'!B$5:T$20,18,0)) ->  | F10: =IF(A10="","",VLOOKUP(B10,'M Q'!B$5:T$20,19,0)) ->  | J10: 1/4 finalistes sortants
A11: =IF(INFO!B8>4,5,"") ->  | B11: =IF(A11="","",VLOOKUP(E11,J$11:M$14,3,0)) ->  | D11: =IF(A11="","",VLOOKUP(E11,J$11:M$14,4,0)) ->  | E11: =IF(A11="","",LARGE(J$11:J$14,1)) ->  | F11: =IF(A11="","",VLOOKUP(E11,J$11:M$14,2,0)) ->  | G11: 1 / 4 FINALES | J11: =IF(L11=0,0,VLOOKUP(L11,saisie!C$5:W$44,21,0)) -> 0 | K11: =VLOOKUP(L11,saisie!C$5:W$44,19,0) ->  | L11: =IF(P.F.!D50="",0,IF(P.F.!B50>2,P.F.!G46,IF(P.F.!H50>2,P.F.!B46,""))) -> 0 | M11: =VLOOKUP(L11,saisie!C$5:W$44,2,0) -> 
A12: =IF(INFO!B8>5,6,"") ->  | B12: =IF(A12="","",VLOOKUP(E12,J$11:M$14,3,0)) ->  | D12: =IF(A12="","",VLOOKUP(E12,J$11:M$14,4,0)) ->  | E12: =IF(A12="","",LARGE(J$11:J$14,2)) ->  | F12: =IF(A12="","",VLOOKUP(E12,J$11:M$14,2,0)) ->  | J12: =IF(L12=0,0,VLOOKUP(L12,saisie!C$5:W$44,21,0)) -> 0 | K12: =VLOOKUP(L12,saisie!C$5:W$44,19,0) ->  | L12: =IF(P.F.!Q50="",0,IF(P.F.!L50>2,P.F.!Q46,IF(P.F.!R50>2,P.F.!L46,""))) -> 0 | M12: =VLOOKUP(L12,saisie!C$5:W$44,2,0) -> 
A13: =IF(INFO!B8>6,7,"") ->  | B13: =IF(A13="","",VLOOKUP(E13,J$11:M$14,3,0)) ->  | D13: =IF(A13="","",VLOOKUP(E13,J$11:M$14,4,0)) ->  | E13: =IF(A13="","",LARGE(J$11:J$14,3)) ->  | F13: =IF(A13="","",VLOOKUP(E13,J$11:M$14,2,0)) ->  | J13: =VLOOKUP(L13,saisie!C$5:W$44,21,0) ->  | K13: =VLOOKUP(L13,saisie!C$5:W$44,19,0) ->  | L13: =IF(P.F.!D60="",0,IF(P.F.!H60>2,P.F.!B56,IF(P.F.!B60>2,P.F.!G56,""))) -> 0 | M13: =VLOOKUP(L13,saisie!C$5:W$44,2,0) -> 
A14: =IF(INFO!B8>7,8,"") ->  | B14: =IF(A14="","",VLOOKUP(E14,J$11:M$14,3,0)) ->  | D14: =IF(A14="","",VLOOKUP(E14,J$11:M$14,4,0)) ->  | E14: =IF(A14="","",LARGE(J$11:J$14,4)) ->  | F14: =IF(A14="","",VLOOKUP(E14,J$11:M$14,2,0)) ->  | J14: =IF(L14=0,0,VLOOKUP(L14,saisie!C$5:W$44,21,0)) -> 0 | K14: =VLOOKUP(L14,saisie!C$5:W$44,19,0) ->  | L14: =IF(P.F.!Q60="",0,IF(P.F.!R60>2,P.F.!L56,IF(P.F.!L60>2,P.F.!Q56,""))) -> 0 | M14: =VLOOKUP(L14,saisie!C$5:W$44,2,0) -> 
A15: =IF(INFO!B8>8,9,"") ->  | B15: =IF(A15="","",VLOOKUP(E15,J$15:M$22,3,0)) ->  | D15: =IF(A15="","",VLOOKUP(E15,J$15:M$22,4,0)) ->  | E15: =IF(A15="","",LARGE(J$15:J$22,1)) ->  | F15: =IF(A15="","",VLOOKUP(E15,J$15:M$22,2,0)) ->  | G15: 1 / 8 FINALES | J15: =IF(L15="",0,VLOOKUP(L15,saisie!C$5:W$44,21,0)) -> 0 | K15: =VLOOKUP(L15,saisie!C$5:W$44,19,0) ->  | L15: =IF(P.F.!D8="","",IF(P.F.!B8>2,P.F.!G4,IF(P.F.!H8>2,P.F.!B4,""))) ->  | M15: =VLOOKUP(L15,saisie!C$5:W$44,2,0) -> 
A16: =IF(INFO!B8>9,10,"") ->  | B16: =IF(A16="","",VLOOKUP(E16,J$15:M$22,3,0)) ->  | D16: =IF(A16="","",VLOOKUP(E16,J$15:M$22,4,0)) ->  | E16: =IF(A16="","",LARGE(J$15:J$22,2)) ->  | F16: =IF(A16="","",VLOOKUP(E16,J$15:M$22,2,0)) ->  | J16: =IF(L16="",0,VLOOKUP(L16,saisie!C$5:W$44,21,0)) -> 0 | K16: =VLOOKUP(L16,saisie!C$5:W$44,19,0) ->  | L16: =IF(P.F.!N8="","",IF(P.F.!L8>2,P.F.!Q4,IF(P.F.!R8>2,P.F.!L4,""))) ->  | M16: =VLOOKUP(L16,saisie!C$5:W$44,2,0) -> 
A17: =IF(INFO!B8>10,11,"") ->  | E17: =IF(A17="","",LARGE(J$15:J$22,3)) ->  | J17: =IF(L17="",0,VLOOKUP(L17,saisie!C$5:W$44,21,0)) -> 0 | K17: =VLOOKUP(L17,saisie!C$5:W$44,19,0) ->  | L17: =IF(P.F.!G18="","",IF(P.F.!H18>2,P.F.!B14,IF(P.F.!B18>2,P.F.!G14,""))) ->  | M17: =VLOOKUP(L17,saisie!C$5:W$44,2,0) -> 
A18: =IF(INFO!B8>11,12,"") ->  | E18: =IF(A18="","",LARGE(J$15:J$22,4)) ->  | J18: =IF(L18="",0,VLOOKUP(L18,saisie!C$5:W$44,21,0)) -> 0 | K18: =VLOOKUP(L18,saisie!C$5:W$44,19,0) ->  | L18: =IF(P.F.!Q18="","",IF(P.F.!R18>2,P.F.!L14,IF(P.F.!L18>2,P.F.!Q14,""))) ->  | M18: =VLOOKUP(L18,saisie!C$5:W$44,2,0) -> 
A19: =IF(INFO!B8>12,13,"") ->  | E19: =IF(A19="","",LARGE(J$15:J$22,5)) ->  | J19: =IF(L19="",0,VLOOKUP(L19,saisie!C$5:W$44,21,0)) -> 0 | K19: =VLOOKUP(L19,saisie!C$5:W$44,19,0) ->  | L19: =IF(P.F.!D29="","",IF(P.F.!B29>2,P.F.!G25,IF(P.F.!H29>2,P.F.!B25,""))) ->  | M19: =VLOOKUP(L19,saisie!C$5:W$44,2,0) -> 
A20: =IF(INFO!B8>13,14,"") ->  | E20: =IF(A20="","",LARGE(J$15:J$22,6)) ->  | J20: =IF(L20="",0,VLOOKUP(L20,saisie!C$5:W$44,21,0)) -> 0 | K20: =VLOOKUP(L20,saisie!C$5:W$44,19,0) ->  | L20: =IF(P.F.!N29="","",IF(P.F.!L29>2,P.F.!Q25,IF(P.F.!R29>2,P.F.!L25,""))) ->  | M20: =VLOOKUP(L20,saisie!C$5:W$44,2,0) -> 
A21: =IF(INFO!B8>14,15,"") ->  | E21: =IF(A21="","",LARGE(J$15:J$22,7)) ->  | J21: =IF(L21="",0,VLOOKUP(L21,saisie!C$5:W$44,21,0)) -> 0 | K21: =VLOOKUP(L21,saisie!C$5:W$44,19,0) ->  | L21: =IF(P.F.!G40="","",IF(P.F.!H40>2,P.F.!B36,IF(P.F.!B40>2,P.F.!G36,""))) ->  | M21: =VLOOKUP(L21,saisie!C$5:W$44,2,0) -> 
A22: =IF(INFO!B8>15,16,"") ->  | E22: =IF(A22="","",LARGE(J$15:J$22,8)) ->  | J22: =IF(L22="",0,VLOOKUP(L22,saisie!C$5:W$44,21,0)) -> 0 | K22: =VLOOKUP(L22,saisie!C$5:W$44,19,0) ->  | L22: =IF(P.F.!Q40="","",IF(P.F.!R40>2,P.F.!L36,IF(P.F.!L40>2,P.F.!Q36,""))) ->  | M22: =VLOOKUP(L22,saisie!C$5:W$44,2,0) -> 
A23: =IF(INFO!B8>16,17,"") ->  | B23: =IF(A23="","",'M Q'!B21) ->  | D23: =IF(A23="","",'M Q'!C21) ->  | E23: =IF(A23="","",'M Q'!S21) ->  | F23: =IF(A23="","",'M Q'!T21) ->  | J23: 1/8 finalistes sortants
A24: =IF(INFO!B8>17,18,"") ->  | B24: =IF(A24="","",'M Q'!B22) ->  | D24: =IF(A24="","",'M Q'!C22) ->  | E24: =IF(A24="","",'M Q'!S22) ->  | F24: =IF(A24="","",'M Q'!T22) -> 
A25: =IF(INFO!B8>18,19,"") ->  | B25: =IF(A25="","",'M Q'!B23) ->  | D25: =IF(A25="","",'M Q'!C23) ->  | E25: =IF(A25="","",'M Q'!S23) ->  | F25: =IF(A25="","",'M Q'!T23) -> 
A26: =IF(INFO!B8>19,20,"") ->  | B26: =IF(A26="","",'M Q'!B24) ->  | D26: =IF(A26="","",'M Q'!C24) ->  | E26: =IF(A26="","",'M Q'!S24) ->  | F26: =IF(A26="","",'M Q'!T24) -> 
A27: =IF(INFO!B8>20,21,"") ->  | B27: =IF(A27="","",'M Q'!B25) ->  | D27: =IF(A27="","",'M Q'!C25) ->  | E27: =IF(A27="","",'M Q'!S25) ->  | F27: =IF(A27="","",'M Q'!T25) -> 
A28: =IF(INFO!B8>21,22,"") ->  | B28: =IF(A28="","",'M Q'!B26) ->  | D28: =IF(A28="","",'M Q'!C26) ->  | E28: =IF(A28="","",'M Q'!S26) ->  | F28: =IF(A28="","",'M Q'!T26) -> 
A29: =IF(INFO!B8>22,23,"") ->  | B29: =IF(A29="","",'M Q'!B27) ->  | D29: =IF(A29="","",'M Q'!C27) ->  | E29: =IF(A29="","",'M Q'!S27) ->  | F29: =IF(A29="","",'M Q'!T27) -> 
A30: =IF(INFO!B8>23,24,"") ->  | B30: =IF(A30="","",'M Q'!B28) ->  | D30: =IF(A30="","",'M Q'!C28) ->  | E30: =IF(A30="","",'M Q'!S28) ->  | F30: =IF(A30="","",'M Q'!T28) -> 
A31: =IF(INFO!B8>24,25,"") ->  | B31: =IF(A31="","",'M Q'!B29) ->  | D31: =IF(A31="","",'M Q'!C29) ->  | E31: =IF(A31="","",'M Q'!S29) ->  | F31: =IF(A31="","",'M Q'!T29) -> 
A32: =IF(INFO!B8>25,26,"") ->  | B32: =IF(A32="","",'M Q'!B30) ->  | D32: =IF(A32="","",'M Q'!C30) ->  | E32: =IF(A32="","",'M Q'!S30) ->  | F32: =IF(A32="","",'M Q'!T30) -> 
A33: =IF(INFO!B8>26,27,"") ->  | B33: =IF(A33="","",'M Q'!B31) ->  | D33: =IF(A33="","",'M Q'!C31) ->  | E33: =IF(A33="","",'M Q'!S31) ->  | F33: =IF(A33="","",'M Q'!T31) -> 
A34: =IF(INFO!B8>27,28,"") ->  | B34: =IF(A34="","",'M Q'!B32) ->  | D34: =IF(A34="","",'M Q'!C32) ->  | E34: =IF(A34="","",'M Q'!S32) ->  | F34: =IF(A34="","",'M Q'!T32) -> 
A35: =IF(INFO!B8>28,29,"") ->  | B35: =IF(A35="","",'M Q'!B33) ->  | D35: =IF(A35="","",'M Q'!C33) ->  | E35: =IF(A35="","",'M Q'!S33) ->  | F35: =IF(A35="","",'M Q'!T33) -> 
A36: =IF(INFO!B8>29,30,"") ->  | B36: =IF(A36="","",'M Q'!B34) ->  | D36: =IF(A36="","",'M Q'!C34) ->  | E36: =IF(A36="","",'M Q'!S34) ->  | F36: =IF(A36="","",'M Q'!T34) -> 
A37: =IF(INFO!B8>30,31,"") ->  | B37: =IF(A37="","",'M Q'!B35) ->  | D37: =IF(A37="","",'M Q'!C35) ->  | E37: =IF(A37="","",'M Q'!S35) ->  | F37: =IF(A37="","",'M Q'!T35) -> 
A38: =IF(INFO!B8>31,32,"") ->  | B38: =IF(A38="","",'M Q'!B36) ->  | D38: =IF(A38="","",'M Q'!C36) ->  | E38: =IF(A38="","",'M Q'!S36) ->  | F38: =IF(A38="","",'M Q'!T36) -> 
A39: =IF(INFO!B8>32,33,"") ->  | B39: =IF(A39="","",'M Q'!B37) ->  | D39: =IF(A39="","",'M Q'!C37) ->  | E39: =IF(A39="","",'M Q'!S37) ->  | F39: =IF(A39="","",'M Q'!T37) -> 
A40: =IF(INFO!B8>33,34,"") ->  | B40: =IF(A40="","",'M Q'!B38) ->  | D40: =IF(A40="","",'M Q'!C38) ->  | E40: =IF(A40="","",'M Q'!S38) ->  | F40: =IF(A40="","",'M Q'!T38) -> 
A41: =IF(INFO!B8>34,35,"") ->  | B41: =IF(A41="","",'M Q'!B39) ->  | D41: =IF(A41="","",'M Q'!C39) ->  | E41: =IF(A41="","",'M Q'!S39) ->  | F41: =IF(A41="","",'M Q'!T39) -> 
A42: =IF(INFO!B8>35,36,"") ->  | B42: =IF(A42="","",'M Q'!B40) ->  | D42: =IF(A42="","",'M Q'!C40) ->  | E42: =IF(A42="","",'M Q'!S40) ->  | F42: =IF(A42="","",'M Q'!T40) -> 
A43: =IF(INFO!B8>36,37,"") ->  | B43: =IF(A43="","",'M Q'!B41) ->  | D43: =IF(A43="","",'M Q'!C41) ->  | E43: =IF(A43="","",'M Q'!S41) ->  | F43: =IF(A43="","",'M Q'!T41) -> 
A44: =IF(INFO!B8>37,38,"") ->  | B44: =IF(A44="","",'M Q'!B42) ->  | D44: =IF(A44="","",'M Q'!C42) ->  | E44: =IF(A44="","",'M Q'!S42) ->  | F44: =IF(A44="","",'M Q'!T42) -> 
A45: =IF(INFO!B8>38,39,"") ->  | B45: =IF(A45="","",'M Q'!B43) ->  | D45: =IF(A45="","",'M Q'!C43) ->  | E45: =IF(A45="","",'M Q'!S43) ->  | F45: =IF(A45="","",'M Q'!T43) -> 
A46: =IF(INFO!B8>39,40,"") ->  | B46: =IF(A46="","",'M Q'!B44) ->  | D46: =IF(A46="","",'M Q'!C44) ->  | E46: =IF(A46="","",'M Q'!S44) ->  | F46: =IF(A46="","",'M Q'!T44) -> 
